Cogmind - Beta 16.1 @@@ ROGUE MODE // 2026.06.22 @ 02:23:56 Player: AngelSpirit Result: Escaped singularity! Performance ------------- Evolutions (9) 4500 Regions Visited (25) 5000 Robots Destroyed (1110) 5550 Value Destroyed (67042) 67042 Prototype IDs (366) 7320 Alien Tech Used (10) 2000 Bonus (88634) 88634 TOTAL SCORE: 180046 Bonus ------- Triggered High Security 1000 High Alert Combat Kills 40922 Follower Combat Kills 539 Hunted by Unchained 500 Met Zhirov 300 Met Warlord at Base 500 MAIN.C Attacked Warlord 500 Warlord Defense Kills 520 Met Warlord at Research 2000 Scanned by Researcher 500 Met Sigix 2000 Destroyed MAIN.C Guards 500 Met MAIN.C 5000 Destroyed MAIN.C Shell 5000 Destroyed MAIN.C 10000 Met Architect 300 Destroyed A8 300 Destroyed A6 400 Destroyed Architect 15000 Win 3000 Friendly Fire -147 Cogmind --------- Core Integrity 190/1600 Matter 280/300 Energy 99/100 System Corruption 0% Temperature Cool (0) Movement Core (50) Location Near Former Tau Ceti IV Parts ------- > --- POWER (3) -------- (None) > --- PROPULSION (6) --- (None) > --- UTILITY (11) ----- (None) > --- WEAPON (6) ------- (None) > --- INVENTORY (5) ---- Centrium Leg Centrium Leg Improved Powered Armor Graphene Brace Thermal Barrier Peak State ------------ > --- POWER ------------ Light Quantum Reactor Reinforced Quantum Reactor Improved Quantum Reactor > --- PROPULSION ------- Experimental Armored Exoskeleton Concept Biometal Exoskeleton > --- UTILITY ---------- Concept Thermoelectric Network Concept Antigrav Storage Unit Experimental Optical Array Advanced Signal Interpreter Experimental Salvage Targeting Computer Concept Networked Targeting System Concept Core Analysis Suite Concept Reaction Jets Experimental Focal Shield Advanced Force Field Concept Matter Streamer > --- WEAPON ----------- KE Penetrator KE Penetrator Multirail Multirail Sigix Broadsword > --- INVENTORY -------- Experimental Biometal Leg Experimental Biometal Leg Concept Biometal Exoskeleton Concept Phasing Heat Sink Concept Thermoelectric Network Concept Thermoelectric Network Concept Chromion Battery Concept NT7 Matterbank Concept Weapon Articulator Concept Reaction Jets Concept Cloak Mesh Graphene Brace Thermal Barrier Concept Antimissile System Transdimensional Reconstructor Subatomic Replicator Concept Disintegration Ray Cooled Nova Cannon Concept Plasma Driver Concept Plasma Driver Concept Plasma Driver Concept Plasma Driver KE Penetrator Tiamat Missile Launcher [Rating: 302] Favorites ----------- Power Reinforced Quantum Reactor Engine Ion Engine Power Core Light Fission Core Reactor Reinforced Quantum Reactor Propulsion Enhanced Biometal Leg Treads Advanced Heavy Siege Treads Leg Enhanced Biometal Leg Wheel Compact Wheel Hover Unit Cooled Airjet Flight Unit Cooled VTOL Module Utility Concept Antigrav Storage Unit Device Concept Thermoelectric Network Storage Concept Antigrav Storage Unit Processor Concept Core Analysis Suite Hackware Hacking Suite Protection Hardened Heavy Armor Plating Artifact Phase Armor Weapon Concept Plasma Driver Energy Gun Heavy Quantum Rifle Energy Cannon Concept Plasma Driver Ballistic Gun Helical Railgun Ballistic Cannon Concept Miniperforator Launcher Gamma Bomb Array Special Weapon Improved Plasma Cutter Impact Weapon Makeshift Hammer Slashing Weapon Sigix Broadsword Build | -11 -10 -10 -9 -9 -8 -7 -6 -5 -5 -5 -5 -4 -4 -4 -4 -4 -3 -3 -3 -3 -2 -2 -1 -1 -1 ------- Run | Yrd Mat Min Mat Sto Mat Fac Fac Fac Upp Upp Zhi Pro Fac Upp Upp War Pro Res Qua Frg Res Tes Acc Com Ac0 Slots Evolved 18 | . . . 2 . 2 2 2 2 . . . . 2 . . . . 2 . . 2 . 2 . . Power 1 | . . . . . . . . . . . . . . . . . . . . . . . 1 . . Propulsion 4 | . . . . . 1 1 1 1 . . . . . . . . . . . . . . . . . Utility 9 | . . . 1 . 1 1 1 1 . . . . 1 . . . . 1 . . 1 . 1 . . Weapon 4 | . . . 1 . . . . . . . . . 1 . . . . 1 . . 1 . . . . Parts Attached 557 | 7 9 8 35 19 9 5 6 75 4 . 5 9 51 2 1 25 1 5 44 57 13 19 68 73 7 Power 59 | 1 1 . 3 3 . 1 1 7 . . 1 2 6 . . 4 . . 2 5 4 1 11 6 . Engine 13 | 1 1 . 3 3 . . 1 3 . . . . 1 . . . . . . . . . . . . Core 7 | . . . . . . 1 . 4 . . . . 2 . . . . . . . . . . . . Reactor 39 | . . . . . . . . . . . 1 2 3 . . 4 . . 2 5 4 1 11 6 . Propulsion 133 | 2 2 2 13 4 3 1 2 27 . . 2 1 17 2 . 6 1 2 6 8 . 2 13 14 3 Treads 23 | . 2 1 4 . . . . 1 . . . . . . . . . . . . . . 9 6 . Leg 59 | . . . . . . . . 7 . . . . 11 2 . 6 1 2 6 8 . 2 4 7 3 Wheel 23 | 2 . 1 9 4 3 1 2 1 . . . . . . . . . . . . . . . . . Hover 17 | . . . . . . . . 8 . . 2 1 6 . . . . . . . . . . . . Flight 11 | . . . . . . . . 10 . . . . . . . . . . . . . . . 1 . Utility 214 | 2 2 1 6 5 3 2 1 26 1 . 2 2 19 . 1 6 . 2 26 28 5 4 28 38 4 Device 104 | 1 . . 2 . 1 1 . 9 . . 1 1 5 . . 3 . . 17 16 3 4 15 22 3 Storage 12 | 1 2 . . . . . . 4 . . . . 1 . 1 . . . 1 1 . . . 1 . Processor 25 | . . . . . . . . 2 . . . . 4 . . 2 . 1 2 7 2 . 2 3 . Hackware 9 | . . . . . . . . 4 . . . . 2 . . . . 1 1 1 . . . . . Protection 62 | . . 1 4 5 2 1 1 7 1 . 1 1 7 . . 1 . . 3 3 . . 11 12 1 Artifact 2 | . . . . . . . . . . . . . . . . . . . 2 . . . . . . Weapon 151 | 2 4 5 13 7 3 1 2 15 3 . . 4 9 . . 9 . 1 10 16 4 12 16 15 . Energy Gun 22 | 1 2 2 1 . . . . 3 . . . . . . . 3 . . . 3 . . . 7 . Energy Cannon 16 | . . . . 1 . . . . . . . . 1 . . 1 . . 5 3 . 4 1 . . Ballistic Gun 86 | 1 . . 11 6 3 1 1 12 1 . . 3 7 . . 4 . . 1 8 4 5 12 6 . Ballistic Cannon 9 | . . 2 . . . . 1 . . . . 1 . . . . . . 1 1 . . 3 . . Launcher 11 | . 2 1 . . . . . . . . . . 1 . . . . 1 . 1 . 3 . 2 . Special Weapon 1 | . . . . . . . . . . . . . . . . 1 . . . . . . . . . Impact Weapon 5 | . . . 1 . . . . . 2 . . . . . . . . . 2 . . . . . . Slashing Weapon 1 | . . . . . . . . . . . . . . . . . . . 1 . . . . . . Piercing Weapon . | . . . . . . . . . . . . . . . . . . . . . . . . . . Special Melee Weapon . | . . . . . . . . . . . . . . . . . . . . . . . . . . Unidentified Prototypes 98 | . . . 3 2 1 . 1 11 . . 4 1 5 . . 10 . 2 23 9 2 8 6 10 . Corrupted Parts 7 | . . . . . . . . . . . . . . . . . . . 3 4 . . . . . System Corruption 47 | . . . . . . . . . . . . . . . . . . . 20 27 . . . . . Parts Lost 127 | . . 8 6 6 1 . 2 29 . . . 3 18 . . . 1 . 3 24 . 2 11 10 3 Power 15 | . . . . . . . 1 4 . . . . 4 . . . . . . 5 . . 1 . . Propulsion 32 | . . 3 5 3 1 . 1 8 . . . 1 4 . . . . . . 4 . . . 1 1 Utility 51 | . . 2 . 1 . . . 11 . . . 2 6 . . . 1 . 3 6 . 2 9 7 1 Weapon 29 | . . 3 1 2 . . . 6 . . . . 4 . . . . . . 9 . . 1 2 1 Highest Loss Streak 22 | . . 7 1 2 1 . 2 22 . . . 2 5 . . . 1 . 1 13 . 1 2 3 3 To Critical Strikes 2 | . . . . . . . . . . . . . . . . . . . . . . . . . 2 Average Backups 20 | 1 14 23 21 23 21 23 24 13 14 15 15 14 14 15 15 20 23 23 23 23 23 23 22 20 23 Power . | . . 1 1 1 1 2 1 . 1 1 1 1 . 1 1 1 1 1 1 . . . . 1 1 Propulsion 2 | 1 4 3 3 2 . 3 4 2 1 1 1 1 1 1 1 . . 1 1 1 1 1 3 2 4 Utility 9 | . 4 6 6 9 8 8 9 5 6 7 6 5 8 8 9 13 13 13 11 11 15 13 8 8 12 Weapon 6 | . 5 11 8 9 8 7 6 2 4 5 5 5 3 2 2 4 7 6 7 6 5 6 8 6 4 Tool/Special . | . . . . . . . . . . . . . . . . . . . . . . . . . . Unused Backups 132 | . 2 1 9 3 5 6 1 13 1 . 2 2 3 . . 2 1 . 5 12 . . 27 26 11 Power 10 | . . 1 1 . . . . . . . . 1 . . . . . . 1 . . . 1 3 2 Propulsion 38 | . . . 1 . . 2 . 1 . . . 1 . . . . . . 1 7 . . 15 7 3 Utility 43 | . 1 . 2 2 . 3 . 7 . . 1 . 2 . . 2 1 . 2 2 . . 7 5 6 Weapon 37 | . 1 . 4 1 5 1 . 4 1 . . . 1 . . . . . 1 3 . . 4 11 . Tool/Special 4 | . . . 1 . . . 1 1 . . 1 . . . . . . . . . . . . . . Average Slot Usage (%) 85 | . 100 97 97 98 99 97 90 80 99 100 88 93 88 94 93 93 95 94 89 82 69 78 81 79 87 Engine 1 | . 14 14 11 11 9 1 2 2 . . . . 1 . . 1 . . . . . . . . . Reactor 7 | . . . . . . . . . . . . 2 5 10 8 8 10 9 9 7 7 8 10 9 6 Treads 3 | . 2 1 7 1 7 . . . . . . . . . . . . . . . . . 4 9 . Leg 9 | . . . . . . . . 5 . . . . 5 29 30 30 30 27 23 19 8 8 6 3 19 Wheel 3 | . 25 25 14 19 19 28 28 3 . . . . . . . . . . . . . . . . . Hover 2 | . . . . . . . . 12 35 35 35 34 20 . . . . . . . . . . . . Device 16 | . 14 11 15 7 8 15 13 11 17 17 16 16 11 9 10 9 10 9 14 15 22 19 20 21 23 Storage 4 | . 14 14 11 11 9 7 6 4 5 5 5 5 5 5 5 5 5 4 4 4 4 4 3 3 2 Processor 9 | . . . . . . . . 5 11 11 11 11 12 10 10 13 15 13 16 15 13 16 11 8 10 Protection 4 | . . . 4 14 18 15 14 5 5 5 5 3 5 5 5 5 5 4 . 1 . . 3 4 2 Energy Gun 1 | . 19 24 . . . . . 2 . . . . . . . . . . . 1 . . . 2 14 Energy Cannon 3 | . . . . . . . . . . . . . . . . . . . 2 2 . . 5 8 . Ballistic Gun 10 | . 7 . 32 30 27 23 20 7 11 11 . 7 11 20 19 19 19 21 9 4 7 15 8 1 . Slashing Weapon 1 | . . . . . . . . . . . . . . . . . . . 3 3 4 4 3 2 2 Peak Build Rating 302 | 7 12 12 23 26 30 40 44 93 94 92 98 103 120 123 120 172 170 188 225 280 282 287 302 301 302 Average Rating 189 | 4 9 11 17 21 28 37 41 62 91 92 82 95 106 120 118 144 167 182 201 212 253 276 280 271 286 On Entrance 117 | . 7 12 8 19 21 29 39 44 88 92 92 98 100 116 120 114 170 163 185 212 219 276 273 278 292 Avg Prop Armor Cover (%) 6 | . . . . 6 5 . . 1 . . . . . . . . . . . . 14 . 5 . . Naked Turns 7 | . . . . . . . . . . . . . . . . . . . . . . . . . 7 Heaviest Build 227 | 15 92 92 103 106 112 113 117 120 51 51 52 57 99 96 138 161 161 165 167 174 105 129 227 227 155 Greatest Support 250 | 32 40 40 43 46 48 58 62 100 51 51 57 84 143 143 143 176 176 176 170 180 158 158 230 250 184 Greatest Overweight (x) 11 | . 2 5 6 10 11 2 2 3 . . 1 . 1 . . 1 . . 1 1 . . 1 . 1 Average Overweight (x) . | . . 2 3 4 3 1 1 . . . . . . . . . . . . . . . . . . Largest Inventory Capacity 25 | 8 25 25 25 25 25 25 25 25 15 15 15 15 15 15 25 25 25 25 25 25 25 25 25 25 25 Average Capacity 23 | 7 17 25 25 25 25 25 25 14 15 15 15 15 15 15 17 25 25 25 25 25 25 25 25 25 24 Most Carried 25 | 3 25 25 25 25 22 25 25 25 15 15 15 15 15 15 17 25 25 25 25 25 25 25 25 25 25 Average Carried 22 | 1 15 24 23 23 20 23 24 13 14 15 14 14 14 15 15 22 24 24 24 23 24 24 24 22 23 Final Capacity 25 | 8 25 25 25 25 25 25 25 15 15 15 15 15 15 15 25 25 25 25 25 25 25 25 25 25 5 Final Carried 25 | 3 25 19 25 23 22 23 25 15 15 15 15 15 15 15 17 25 24 25 25 25 25 25 25 24 5 Class Distribution -------------------- 25% | Scavenger-Tank 13% | Scavenger-Gunner 10% | Scavenger-Skirmisher 9% | Scavenger-Mutant 7% | Pyromaniac-Tank 7% | Scavenger-Gladiator 5% | Scavenger-Sprinter 5% | Scavenger-Assassin 4% | Mutant 3% | Tank Dominant Class ---------------- Mutant | -10/Materials Mutant | -10/Mines Skirmisher | -9/Materials Scavenger-Tank | -9/Storage Tank | -8/Materials Scavenger-Tank | -7/Factory Scavenger-Tank | -6/Factory Scavenger-Sprinter | -5/Factory Scavenger-Sprinter | -5/Upper Caves Scavenger-Sprinter | -5/Upper Caves Scavenger-Sprinter | -5/Zhirov Scavenger-Sprinter | -4/Proximity Caves Scavenger-Sprinter | -4/Factory Scavenger-Skirmisher | -4/Upper Caves Scavenger-Skirmisher | -4/Upper Caves Scavenger-Skirmisher | -4/Warlord Scavenger-Skirmisher | -3/Proximity Caves Scavenger-Tank | -3/Research Scavenger-Gladiator | -3/Quarantine Scavenger-Gladiator | -3/Protoforge Scavenger-Mutant | -2/Research Scavenger-Assassin | -2/Testing Scavenger-Gunner | -1/Access Scavenger-Tank | -1/Command Scavenger-Gunner | -1/Access_0 Resources | -11 -10 -10 -9 -9 -8 -7 -6 -5 -5 -5 -5 -4 -4 -4 -4 -4 -3 -3 -3 -3 -2 -2 -1 -1 -1 ----------- Run | Yrd Mat Min Mat Sto Mat Fac Fac Fac Upp Upp Zhi Pro Fac Upp Upp War Pro Res Qua Frg Res Tes Acc Com Ac0 Matter Collected 36095 | 212 357 317 2195 1755 665 196 180 1911 224 19 98 1140 2559 773 208 402 303 170 2464 4168 563 2951 8642 3218 405 Remotely 6458 | . . . . . . . . . . . . . . . . . . . . . . 1536 4180 742 . Salvage Created 79578 | 17 586 217 2307 2368 984 62 250 2095 211 122 222 1155 4064 751 133 222 279 265 2459 4928 636 4804 19853 28650 1938 Parts 2897 | 3 41 11 123 145 38 7 17 95 13 . 1 45 194 25 10 12 22 17 129 270 23 248 490 811 107 Haulers Intercepted 39 | . 2 . 6 4 1 1 2 4 . . . . 8 . . . . 1 . . 3 2 5 . . Recyclers Shooed 11 | . . . 2 2 . . . 2 . . . . 1 . . . . . 1 . . . 1 2 . Parts Field Recycled . | . . . . . . . . . . . . . . . . . . . . . . . . . . Retrieved Matter . | . . . . . . . . . . . . . . . . . . . . . . . . . . Parts Self-Destructed 108 | . . . . . . . . . 8 . . 41 . 32 10 . 17 . . . . . . . . Prevented 7 | . . . . . . . . . 3 . 1 . . . . . 3 . . . . . . . . Parts Restored 10 | . . . . . . . . . . . . . . . . . . . . 9 . . . 1 . Broken 1 | . . . . . . . . . . . . . . . . . . . . . . . . 1 . Faulty 9 | . . . . . . . . . . . . . . . . . . . . 9 . . . . . Kills | -11 -10 -10 -9 -9 -8 -7 -6 -5 -5 -5 -5 -4 -4 -4 -4 -4 -3 -3 -3 -3 -2 -2 -1 -1 -1 ------- Run | Yrd Mat Min Mat Sto Mat Fac Fac Fac Upp Upp Zhi Pro Fac Upp Upp War Pro Res Qua Frg Res Tes Acc Com Ac0 Combat Hostiles Destroyed 923 | . 10 9 44 56 14 . 1 19 3 . . 16 38 8 5 3 6 1 24 75 3 45 205 318 20 Melee 17 | . . . . . . . . 4 . . . . . . . . . . 2 6 . 5 . . . Guns 428 | . 8 5 33 23 14 . 1 12 2 . . 8 27 8 1 3 4 1 9 15 2 39 188 14 11 Cannons 293 | . . 2 . . . . . 1 . . . 7 8 . . . . . . 35 . . 7 226 7 AOE 89 | . 2 2 11 32 . . . 2 . . . . 3 . 4 . 2 . . 9 . . 4 18 . Classes Destroyed 31 | 1 6 2 5 2 . . 1 1 . . . 2 1 . . 1 . . 1 5 1 . 1 1 . Worker 74 | . 2 . 3 6 . . . 5 . . . . 8 . . . . . 1 2 1 7 23 16 . Builder 30 | . . . 2 . 1 1 1 9 . . . . 4 . . . . . . . 1 1 10 . . Tunneler 6 | 1 1 . 1 . . . 1 2 . . . . . . . . . . . . . . . . . Hauler 39 | . 2 . 6 4 1 1 2 4 . . . . 8 . . . . 1 . . 3 2 5 . . Recycler 27 | . . . 3 3 2 . . 3 . . . . 2 . . . . . 2 . . . 2 10 . Carrier 8 | . . . . . . . . . . . . . . . . . . . . . . . . 8 . Minesweeper 3 | . . . . . . . . . . . . 1 . 1 . . 1 . . . . . . . . Mechanic 22 | . . . 1 5 . . . . . . . . 1 . . . . . . . . . 6 9 . Operator 13 | . 1 . 2 1 1 . . . . . . . 1 . . . . 1 1 1 . 2 1 1 . Drone 7 | . . . . . . . . . . . . 2 . . . . . . . 5 . . . . . Watcher 24 | . 3 . 3 1 . . . 3 . . . . 4 . . . . . . . . 3 3 4 . Swarmer 74 | . 2 3 8 4 . . . 1 . . . . 6 . 4 . 3 . . 7 . . 3 33 . Cutter 6 | . . . . . . . . . . . . . . . . . . . . . . . . 6 . Saboteur 23 | . . . . . . . . . . . . . . . . . . . . 1 . 1 7 14 . Grunt 339 | . 8 4 22 37 12 . . 5 . . . 9 14 5 . 2 . . 8 9 . 22 76 106 . Brawler 31 | . . . . 2 . . . . . . . 1 1 1 . . . . . 1 . 2 5 18 . Duelist 39 | . . . 4 3 . . . 2 . . . 2 2 . . . . . . 2 . . 12 12 . Protector 25 | . . . . 3 . . . 1 . . . . . . . . 1 . . . . . 10 10 . Researcher 2 | . . . . . . . . . . . . . . . . . . . . 2 . . . . . Sentry 57 | . . . 10 7 2 . . 3 1 . . 2 3 . 1 . . 1 . 9 1 3 8 6 . Demolisher 1 | . . 1 . . . . . . . . . . . . . . . . . . . . . . . Specialist 2 | . . . . . . . . . . . . . 2 . . . . . . . . . . . . Hunter 69 | . . . . . . . . 2 1 . . . 4 . . . . . . 5 . 8 17 32 . Programmer 119 | . . . . . . . 1 5 1 . . . 6 2 . . 2 . 1 15 . 5 38 43 . Behemoth 6 | . . . . . . . . . . . . . . . . . . . . . . . 3 3 . Quarantine Guard 12 | . . . . . . . . . . . . . . . . . . . 12 . . . . . . S7 Guard 1 | . . . . . . . . . . . . . . . . . . . . . . . 1 . . M Guard 2 | . . . . . . . . . . . . . . . . . . . . . . . . 2 . Enhanced Grunt 11 | . . . . . . . . . . . . . . . . . . . . . . . . . 11 Enhanced Hunter 6 | . . . . . . . . . . . . . . . . . . . . . . . . . 6 Lightning 2 | . . . . . . . . . . . . . . . . . . . 2 . . . . . . CL-0N3 Special 4 | . . . . . . . . . . . . . . . . . . . . . . 2 2 . . Hotshot 4 | . . . . . . . . . . . . . . . . . . . . 4 . . . . . Decapitator 11 | . . . . . . . . . . . . . . . . . . . . 11 . . . . . Immortal 2 | . . . . . . . . . . . . . . . . . . . . 2 . . . . . Combat Programmer 3 | . . . . . . . . . . . . . . . . . . . . . . 1 . 2 . Investigator 5 | . . . . . . . . . . . . . . . . . . . . . . . 2 3 . Striker 29 | . . . . . . . . . . . . . . . . . . . . . 1 . 11 17 . Executioner 24 | . . . . . . . . . . . . . . . . 1 . . . . 1 . 12 10 . Alpha 7 5 | . . . . . . . . . . . . . . . . . . . . 2 . 1 . 2 . Fortress 1 | . . . . . . . . . . . . . . . . . . . 1 . . . . . . V-Series 2 | . . . . . . . . . . . . . . . . . . . . 2 . . . . . Decomposer 9 | . . . . . . . . . . 9 . . . . . . . . . . . . . . . Packrat 2 | . . . . . . . . . . . . . . 2 . . . . . . . . . . . Assembled 1 | . . 1 . . . . . . . . . . . . . . . . . . . . . . . Best Kill Streak 47 | 1 3 2 6 18 4 1 2 14 1 . . 3 6 3 4 2 3 3 4 8 2 15 47 46 4 Combat Bots Only 44 | . 3 2 5 13 3 . 1 6 1 . . 3 5 3 4 2 3 1 4 8 1 6 37 44 4 Max Kills in Single Turn 5 | 1 2 1 3 5 2 1 1 5 1 1 . 2 3 1 4 1 2 1 1 4 1 3 3 5 2 Gunslinging 1 | . . . 1 1 . . . . . . . 1 . . . . . . . . . 1 1 1 . Exploded 5 | . 2 1 3 3 . . . 1 . . . . 3 . 4 . 2 . . 4 . . 3 5 . Melee 1 | . . . . . . . . 1 . . . . . . . . . . 1 1 . 1 . . . Uniques/NPCs Destroyed 5 | . . . . . . . . . . . . . . . . . . . . . . . . 2 3 MAIN.C Shell (-1/Command) MAIN.C (-1/Command) A8 (-1/Access_0) A6 (-1/Access_0) Architect (-1/Access_0) Combat | -11 -10 -10 -9 -9 -8 -7 -6 -5 -5 -5 -5 -4 -4 -4 -4 -4 -3 -3 -3 -3 -2 -2 -1 -1 -1 -------- Run | Yrd Mat Min Mat Sto Mat Fac Fac Fac Upp Upp Zhi Pro Fac Upp Upp War Pro Res Qua Frg Res Tes Acc Com Ac0 Hostile Shots Fired 4958 | . 29 62 166 111 42 . 45 354 24 . . 83 304 68 16 . 16 2 171 386 22 646 1104 873 434 Missed 1752 | . 11 17 43 33 12 . 15 97 10 . . 34 106 28 8 . 6 1 61 127 17 253 433 221 219 Deflected 3 | . . . . . . . . . . . . . . . . . . . 1 . . . . . 2 Hits 3206 | . 18 45 123 78 30 . 30 257 14 . . 49 198 40 8 . 10 1 110 259 5 393 671 652 215 Melee 185 | . . 5 5 5 . . . 17 . . . 1 35 . . . . . . 75 3 3 26 4 6 Projectile 3021 | . 18 40 118 73 30 . 30 240 14 . . 48 163 40 8 . 10 1 110 184 2 390 645 648 209 AOE 17 | . . 5 . . . . . . . . . . . . . 1 . . . 4 . . 2 5 . Critical Strikes 249 | . . 1 6 3 . . . 16 . . . 1 15 4 . . . . 15 56 . 35 37 38 22 Actively Blocked 86 | . . . . . . . . . . . . . . . . . . . . 10 . 4 32 35 5 Part Disruptions 22 | . . . . . . . . . . . . . 6 2 . . . . 2 2 . . 1 8 1 Actively Blocked 6 | . . . . . . . . . . . . . . . . . . . . . . . . 6 . Damage Taken 52323 | . 289 849 1719 1087 398 17 366 4936 296 . . 1014 3818 468 201 98 172 22 1456 7596 240 2490 9668 11646 3477 Core 4458 | . . 237 212 136 . 17 23 630 18 . . 160 372 . 34 . 34 . 89 1045 . 110 548 479 314 Absorbed by Shields 20342 | . . . . . 76 . . . . . . . . . . . 64 . 774 1616 . 4174 5469 4790 3379 Reduced by Siege Mode 2458 | . . . . . . . . . . . . . . . . . . . . . . . 424 2034 . Redirected to Shielding 267 | . . . . . . . . . . . . . . . . . . . . 91 . . . . 176 Ignored by Resistances 9702 | . . . . . . . . 83 . . . . 548 390 . . 37 . 1487 893 . 3326 1944 900 94 Regen/Repaired (Parts) 8072 | . . . . . . . . 26 . . . . . . . 110 . . 660 1230 118 895 2403 1748 882 Core Remaining (%) 54 | 100 . 5 . 13 100 97 97 . . . . 19 . . . . 61 . . 5 . 92 . . 11 Volleys Fired 2128 | 2 51 25 145 110 46 9 18 67 7 . . 118 149 32 8 5 14 19 114 198 13 134 384 386 74 Largest 6 | 2 2 2 3 3 3 3 3 3 3 . . 3 4 4 4 4 4 5 3 5 4 4 4 6 6 Hottest 570 | 60 90 90 69 71 75 75 78 238 99 . . 105 159 120 120 136 152 174 188 250 147 147 420 570 450 Shots Fired 5699 | 4 98 44 416 257 138 23 54 180 20 1 . 160 344 124 30 20 50 47 224 250 38 451 1366 1084 276 Gun 4323 | 4 94 26 407 229 138 21 54 169 20 1 . 110 293 124 29 20 48 47 155 124 38 435 1296 191 250 Cannon 1294 | . . 15 . . . . . 6 . . . 50 49 . . . . . 69 119 . 16 59 885 26 Launcher 82 | . 4 3 9 28 . 2 . 5 . . . . 2 . 1 . 2 . . 7 . . 11 8 . Special . | . . . . . . . . . . . . . . . . . . . . . . . . . . Kinetic 4014 | 2 39 15 407 229 138 21 54 146 20 1 . 160 339 124 29 20 48 47 155 153 34 425 1287 121 . Thermal 1277 | . . . . . . . . 29 . . . . 3 . . . . . . 9 . 16 59 893 268 Explosive 75 | . 4 3 9 28 . 2 . 5 . . . . 2 . 1 . 2 . . . . . 11 8 . Electromagnetic 275 | 2 55 26 . . . . . . . . . . . . . . . . 69 60 4 9 . 50 . Entropic 58 | . . . . . . . . . . . . . . . . . . . . 28 . 1 9 12 8 Robot Hit Streak 85 | 2 11 6 16 14 11 3 19 19 21 . . 16 30 6 8 10 11 6 12 30 5 16 85 49 31 Robot Miss Streak 8 | 2 5 3 6 5 4 3 4 4 . . . 5 6 3 3 1 2 5 4 8 3 6 8 6 4 Penetration Max 3 | . . . . . . . 1 1 . . . 1 3 1 . 1 . . 1 2 1 2 2 2 1 Secondary Targets 108 | . . . 4 4 2 . . . . . . 1 2 2 . . . . 2 2 . 20 60 4 5 Max Gunslinging Chain 2 | . . . 2 1 1 . . . . . . 1 1 1 . . . . 1 1 . 1 2 1 1 Shots Hit Robots 3797 | 2 61 34 248 152 80 7 40 137 22 9 4 89 254 65 11 12 26 16 135 191 32 316 1037 595 222 Core Hits 2537 | 1 33 19 97 132 38 2 12 88 6 2 . 45 124 24 9 8 14 8 48 177 14 161 870 484 121 Critical Kills 228 | . . . 2 . . . . 2 . . . 7 28 1 . . 1 . 7 33 . 3 77 65 2 Critical Parts Destroyed 195 | . . . 1 2 . . . 2 . 2 . 22 40 3 . 1 2 . 9 20 1 13 76 1 . Critical Strikes 459 | . . 1 3 2 . . . 4 . 2 . 30 71 4 1 1 3 . 18 67 1 18 163 68 2 Meltdown 75 | . . . . . . . . . . . . . . . . . . . . 3 . 1 5 64 2 Destroy 363 | . . . 3 2 . . . 1 . . . 29 67 4 1 1 3 . 17 57 1 15 158 4 . Blast 1 | . . 1 . . . . . . . . . . . . . . . . . . . . . . . Corrupt 4 | . . . . . . . . . . . . . . . . . . . 1 3 . . . . . Smash 10 | . . . . . . . . 3 . 2 . 1 4 . . . . . . . . . . . . Sever 2 | . . . . . . . . . . . . . . . . . . . . . . 2 . . . Sunder 4 | . . . . . . . . . . . . . . . . . . . . 4 . . . . . Melee Attacks 362 | . . . 1 15 . . . 35 6 10 4 10 75 . . . . . 29 42 24 48 14 49 . Kinetic 1 | . . . . . . . . . . . . . . . . . . . 1 . . . . . . Impact 156 | . . . 1 15 . . . 35 6 10 4 10 75 . . . . . . . . . . . . Slashing 205 | . . . . . . . . . . . . . . . . . . . 28 42 24 48 14 49 . Piercing . | . . . . . . . . . . . . . . . . . . . . . . . . . . Sneak Attacks 54 | . . . . 1 . . . 7 1 9 . . 15 . . . . . 1 8 5 1 3 3 . Combat Hostiles 2 | . . . . . . . . . 1 . . . . . . . . . 1 . . . . . . Follow-up Attacks . | . . . . . . . . . . . . . . . . . . . . . . . . . . Damage Inflicted 179830 | 28 1106 652 4684 5869 1406 142 844 5364 636 1046 381 1834 7279 1492 489 364 1077 483 4423 8776 2053 10618 37973 67664 13147 Guns 84615 | 28 835 249 3707 2135 1406 142 844 2691 478 . . 1186 3983 1492 237 364 698 483 1763 2904 676 8193 35277 4138 10706 Cannons 63361 | . . 198 . . . . . 152 . . . 603 502 . . . . . 1555 2887 . . 1085 53938 2441 Explosions 12771 | . 271 205 977 3571 . . . 1012 . . . . 462 . 252 . 379 . . 1410 . 66 1208 2958 . Melee 19067 | . . . . 163 . . . 1505 158 1046 381 45 2332 . . . . . 1105 1575 1377 2349 403 6628 . Ramming 16 | . . . . . . . . 4 . . . . . . . . . . . . . 10 . 2 . Kinetic 72751 | 13 289 198 3707 2135 1406 142 844 2386 478 . . 1789 4485 1492 237 364 698 483 1763 2821 529 7983 34927 3582 . Thermal 68853 | . 115 37 . . . . . 457 . . . . . . . . . . . 409 . . 1085 53998 12752 Explosive 11143 | . 156 168 977 3571 . . . 1012 . . . . 462 . 252 . 379 . . . . . 1208 2958 . Electromagnetic 5821 | 15 546 249 . . . . . . . . . . . . . . . . 1555 2816 147 257 . 236 . Impact 5630 | . . . . 163 . . . 1505 158 1046 381 45 2332 . . . . . . . . . . . . Slashing 13437 | . . . . . . . . . . . . . . . . . . . 1105 1575 1377 2349 403 6628 . Piercing . | . . . . . . . . . . . . . . . . . . . . . . . . . . Entropic 2179 | . . . . . . . . . . . . . . . . . . . . 1155 . 19 350 260 395 Highest Corruption 26 | . . 3 . 2 . . 1 14 15 15 15 15 12 12 12 12 1 . 10 21 . 7 11 26 . Average Corruption 8 | . . 3 . 2 . . 1 9 14 15 15 15 3 12 12 12 1 . 5 6 . 3 6 12 . Corruption Purged 112 | . . . . . . . . 2 . . . . . . . . . . 26 45 . . 13 26 . Corruption Blocked . | . . . . . . . . . . . . . . . . . . . . . . . . . . Effects 744 | . . 1 . 13 . . . 38 21 15 5 51 19 51 29 1 2 . 15 50 . 19 167 247 . Message Errors 173 | . . . . 1 . . . 8 2 4 1 11 5 11 6 1 1 . 2 11 . 4 56 49 . Matter Fused 172 | . . 1 . 5 . . . 10 4 2 1 11 3 16 4 . . . 5 14 . 6 33 57 . Heat Flow Errors 100 | . . . . 2 . . . 5 3 2 1 2 5 4 2 . . . 3 8 . 2 19 42 . Energy Discharges 78 | . . . . 1 . . . 6 4 1 1 3 1 8 3 . . . 2 3 . 1 15 29 . Parts Rejected 4 | . . . . 1 . . . . 1 . . . . . . . . . 1 1 . . . . . Parts Fused 11 | . . . . 1 . . . 1 . . . 2 . 1 . . . . . 1 . . 1 4 . Data Loss (minor) 83 | . . . . 2 . . . 3 2 2 1 7 . 2 6 . 1 . 1 4 . 2 16 34 . Data Loss (major) 26 | . . . . . . . . . 2 1 . 4 1 2 2 . . . . 4 . 1 7 2 . Misfires 26 | . . . . . . . . 2 1 1 . 2 . . 3 . . . . 2 . 2 8 5 . Alerts 23 | . . . . . . . . 2 . 2 . 3 1 3 1 . . . 1 . . . 5 5 . Misdirections 5 | . . . . . . . . . . . . 2 . . . . . . . . . . . 3 . Weapon Failures 43 | . . . . . . . . 1 2 . . 4 3 4 2 . . . . 2 . 1 7 17 . Overload Shots 16 | . . . . . . . . . . . . . . . . . . . . . . . . 16 . Effects 4 | . . . . . . . . . . . . . . . . . . . . . . . . 4 . Energy Bleed 1 | . . . . . . . . . . . . . . . . . . . . . . . . 1 . Short Circuit 3 | . . . . . . . . . . . . . . . . . . . . . . . . 3 . Overflow Damage 8443 | . . 40 . 106 . . . 586 21 842 285 45 1181 . 4 . 2 . 151 411 116 276 79 4298 . Projectiles 3284 | . . . . . . . . 14 . . . . 24 . . . . . . 114 . . . 3132 . Explosions 422 | . . 40 . 20 . . . 22 . . . . 122 . 4 . 2 . . 30 . . . 182 . Melee 4737 | . . . . 86 . . . 550 21 842 285 45 1035 . . . . . 151 267 116 276 79 984 . Knockbacks 38 | . . 4 . . . . . 9 1 . . 4 6 . . . . . . 14 . . . . . Impact 11 | . . . . . . . . 6 1 . . . 4 . . . . . . . . . . . . Kinetic 25 | . . 4 . . . . . 3 . . . 4 1 . . . . . . 13 . . . . . Secondary 2 | . . . . . . . . . . . . . 1 . . . . . . 1 . . . . . Self-Inflicted Damage 676 | . 75 22 58 21 . . . 178 . . . . . . 20 . 20 . . 282 . . . . . Shots 26 | . 2 1 3 1 . . . 4 . . . . . . 1 . 1 . . 13 . . . . . Rammed 1 | . . . . . . . . . . . . . . . . . . . . . . . . 1 . Targets Rammed 4 | . . . . . . . . 1 . . . . . . . . . . . . 1 1 . 1 . Kicked 3 | . . . . . . . . 1 . . . . . . . . . . . . 1 1 . . . Crushed . | . . . . . . . . . . . . . . . . . . . . . . . . . . Highest Temperature 417 | . 69 153 232 281 294 4 6 417 225 213 106 237 284 281 166 . . . 192 208 24 226 327 223 203 Average Temperature 136 | . 32 68 42 39 98 2 2 70 97 117 57 125 77 129 85 . . . 17 90 11 26 173 125 138 Received Heat Transfer 4841 | . 117 192 660 402 220 9 57 636 27 . . 219 412 81 18 20 . . 173 264 9 190 577 558 . Thermoelectric Energy+ 379863 | . . . . . . . . . . . . . . . . . . . . . . 72 334456 42610 2725 Effects 12 | . . . . 1 . . . 4 . . . . 2 . . . . . . . . . 4 . 1 Energy Bleed 5 | . . . . 1 . . . 1 . . . . 1 . . . . . . . . . 1 . 1 Interference 7 | . . . . . . . . 3 . . . . 1 . . . . . . . . . 3 . . Siege Activations 26 | . . . . . . . . . . . . . . . . . . . . . . . 6 20 . Total Turns 2840 | . . . . . . . . . . . . . . . . . . . . . . . 528 2312 . Longest Duration 721 | . . . . . . . . . . . . . . . . . . . . . . . 266 721 . Martial Activations 3 | . . . . . . . . . . . . . . . . . . . 3 . . . . . . Total Turns 53 | . . . . . . . . . . . . . . . . . . . 53 . . . . . . Longest Duration 29 | . . . . . . . . . . . . . . . . . . . 29 . . . . . . Shielding Activations 3 | . . . . . . . . . . . . . . . . . . . . 2 . . . . 1 Total Turns 32 | . . . . . . . . . . . . . . . . . . . . 16 . . . . 16 Longest Duration 16 | . . . . . . . . . . . . . . . . . . . . 11 . . . . 16 Robots Disrupted 1 | . . . . . . . . . . . . . . . . . . . . 1 . . . . . Combat Hostiles 1 | . . . . . . . . . . . . . . . . . . . . 1 . . . . . Robots Corrupted 40 | . . . . 1 . . . 6 1 . 2 1 8 . . . . . 12 8 1 . . . . Combat Hostiles 26 | . . . . 1 . . . . 1 . 2 1 . . . . . . 12 8 1 . . . . Parts Fried 106 | . . . . 4 . . . 8 3 2 . 1 11 . . . 1 . 41 29 2 4 . . . Impact Corruptions 82 | . . . . 3 . . . 20 1 22 11 1 24 . . . . . . . . . . . . Robots Melted 79 | . . . . . . . . . . . . . . . . . . . . 3 . 1 6 67 2 Combat Hostiles 71 | . . . . . . . . . . . . . . . . . . . . 2 . 1 6 60 2 Parts Melted 259 | . . . . 1 . . . 2 . . . . . . . 1 . . 10 1 . . 41 191 12 Heat Transferred 35517 | . 150 50 . . . . . 684 . . . . . . . . . . . 250 . . 901 28964 4518 Parts Sabotaged 3 | . . . . . . . . . . . . . . . . . . . . . . . 3 . . Parts Stolen . | . . . . . . . . . . . . . . . . . . . . . . . . . . Parts Stripped 18 | . . . . . . . . . . . . . . . . . . . 18 . . . . . . Power Chain Reactions 6 | . 2 1 . . . . . . . . . . . . . . . . . 2 . 1 . . . Alert | -11 -10 -10 -9 -9 -8 -7 -6 -5 -5 -5 -5 -4 -4 -4 -4 -4 -3 -3 -3 -3 -2 -2 -1 -1 -1 ------- Run | Yrd Mat Min Mat Sto Mat Fac Fac Fac Upp Upp Zhi Pro Fac Upp Upp War Pro Res Qua Frg Res Tes Acc Com Ac0 Maximum Alert Level 5 | . . . 3 5 3 1 . 1 . . . . 4 . . . . . 2 5 3 3 5 5 . Low Security (%) 17 | 100 100 100 58 . . 22 100 83 . . . . . . . . . 100 46 . . . . . . Level 1 9 | . . . 4 2 . 77 . 16 . . . . 21 . . . . . 52 18 . 14 . . . Level 2 9 | . . . 27 4 . . . . . . . . 32 . . . . . 1 11 67 39 2 . . Level 3 13 | . . . 8 55 99 . . . . . . . 20 . . . . . . 46 32 45 6 . . Level 4 5 | . . . . 35 . . . . . . . . 25 . . . . . . 16 . . 9 . . Level 5 14 | . . . . 2 . . . . . . . . . . . . . . . 6 . . 2 51 . High Security 28 | . . . . . . . . . . . . . . . . . . . . . . . 78 48 . Max Security . | . . . . . . . . . . . . . . . . . . . . . . . . . . Sterilizations 1 | . . . . . . . . . . . . . . . . . . . . . . . 1 . . Peak Influence 11904 | 5 136 102 939 1717 916 383 77 299 . . . . 1249 . . . . 62 413 1623 891 1004 5379 11904 . Initial 3442 | . . 24 13 394 724 383 77 2 . . . . 308 . . . . 14 14 231 891 303 598 3442 . Average 2577 | . 54 38 272 1084 808 270 13 113 . . . . 751 . . . . 21 222 887 645 655 3950 8104 . Influence Increases 29783 | 5 447 257 1457 2279 432 21 99 986 110 60 15 440 2061 185 110 165 140 123 1090 2312 219 1580 5450 9380 360 Destroy 0b10 Robot/C 17900 | . 200 160 880 1380 280 . 20 360 60 . . 280 760 160 100 80 100 20 480 1440 60 820 3880 6380 . Destroy 0b10 Robot/NC 1450 | 5 45 . 105 130 25 10 20 135 . . 15 15 140 5 . 10 10 10 20 45 25 75 300 305 . Destroy Leader 2784 | . 50 50 238 272 62 2 14 104 20 . . 10 174 20 10 . 30 12 160 150 26 130 636 614 . Allied During Kill 125 | . . . . 95 . . . . . . . . . . . 30 . . . . . . . . . Trap Triggered on 0b10 70 | . . . . . . . . . . . . . 10 . . . . . . 60 . . . . . Successful Hack 346 | . 12 . 13 19 . . . 28 . . . . 102 . . . . 14 56 50 . 9 43 . . Select Force Hacks 120 | . 60 . 30 30 . . . . . . . . . . . . . . . . . . . . . Disable Machine 1335 | . 15 . 90 105 15 . . 30 . . . . 45 . . . . 30 285 210 45 120 75 225 45 Anti-Garrison Action 250 | . . . . . . . . . . . . . . . . . . . . 200 . . . 50 . Destroy Structure 2733 | . 35 32 41 143 5 9 . 44 . . . . 140 . . . . 22 44 112 48 291 411 1041 315 Advance Influence 300 | . . . . . . . . . . . . . 300 . . . . . . . . . . . . Partial Spotted 255 | . . . . . . . . 105 . . . . 120 . . . . 15 . . . . 15 . . Lose Combat Pursuer 2115 | . 30 15 60 105 45 . 45 180 30 60 . 135 270 . . 45 . . 45 45 15 135 90 765 . Influence Decreases 29453 | 5 383 287 556 1500 1302 707 250 702 355 106 15 426 867 946 420 302 118 119 705 1139 1264 1121 1069 2417 12372 Entered New Map 18743 | . . 40 21 541 990 461 81 5 109 10 . . 6 448 86 137 . 8 12 180 693 236 400 1937 12342 Time Decay 8678 | 5 383 218 475 559 302 246 154 444 246 96 15 356 571 498 334 95 113 111 663 719 571 565 559 380 . Search Patrol Dispatched 100 | . . . . . . . . . . . . . 100 . . . . . . . . . . . . Lost Part 1162 | . . 29 60 60 10 . 15 243 . . . 30 180 . . . 5 . 30 240 . 20 110 100 30 Lost Ally 170 | . . . . 40 . . . 10 . . . 40 10 . . 70 . . . . . . . . . Purge Threat 600 | . . . . 300 . . . . . . . . . . . . . . . . . 300 . . . Squads Dispatched 194 | . 2 . 7 13 6 7 4 10 . . . . 16 . . . . 4 4 15 . 15 53 38 . Investigation 23 | . 2 . 3 2 2 1 1 3 . . . . 2 . . . . 2 2 1 . 1 . 1 . Extermination 25 | . . . . . . 1 2 2 . . . . 4 . . . . 1 1 7 . 3 3 1 . Reinforcement 29 | . . . 3 1 4 2 . 2 . . . . 5 . . . . 1 1 2 . 5 3 . . Assault 95 | . . . 1 10 . . . 2 . . . . 4 . . . . . . 5 . 2 35 36 . Garrison 22 | . . . . . . 3 1 1 . . . . 1 . . . . . . . . 4 12 . . Intercept . | . . . . . . . . . . . . . . . . . . . . . . . . . . Searches Triggered 1 | . . . . . . . . . . . . . 1 . . . . . . . . . . . . Unchained Authorized 2 | . . . . . . . . . . . . . . . . . . . . . . 1 1 . . Construction Impeded 7 | . . . . . 1 . . 1 . . . . . . . . . . . 2 . 1 2 . . Haulers Reinforced 6 | . . . . . . 1 . 1 . . . . 2 . . . . 1 . . . . 1 . . Active Scanning Responses . | . . . . . . . . . . . . . . . . . . . . . . . . . . Cargo Convoy Interrupts . | . . . . . . . . . . . . . . . . . . . . . . . . . . Stealth | -11 -10 -10 -9 -9 -8 -7 -6 -5 -5 -5 -5 -4 -4 -4 -4 -4 -3 -3 -3 -3 -2 -2 -1 -1 -1 --------- Run | Yrd Mat Min Mat Sto Mat Fac Fac Fac Upp Upp Zhi Pro Fac Upp Upp War Pro Res Qua Frg Res Tes Acc Com Ac0 Distress Signals 45 | . 2 . . 2 . . . 5 . . . . 4 . . 3 . . . 1 3 1 5 19 . Communications Jammed 3 | . . . . . . . . . . . . . . . . . . . . 3 . . . . . Distress Signals . | . . . . . . . . . . . . . . . . . . . . . . . . . . Times Spotted 1280 | . 23 32 59 91 25 14 18 57 5 2 . 21 68 8 5 32 7 2 29 78 17 65 249 329 44 Peak Tracking Total 59 | . 3 20 6 9 5 4 4 14 3 4 . 7 8 4 4 7 3 2 4 5 8 8 10 59 6 Tactical Retreats 74 | . 1 1 4 5 3 . 2 9 1 1 . 4 13 . . 2 . . 2 3 2 5 5 11 . ECM-based Alert Blocks 7 | . . . . . . . . . . . . . . . . . . . . . 7 . . . . Traps | -11 -10 -10 -9 -9 -8 -7 -6 -5 -5 -5 -5 -4 -4 -4 -4 -4 -3 -3 -3 -3 -2 -2 -1 -1 -1 ------- Run | Yrd Mat Min Mat Sto Mat Fac Fac Fac Upp Upp Zhi Pro Fac Upp Upp War Pro Res Qua Frg Res Tes Acc Com Ac0 Traps Triggered 26 | . . . 4 1 . . . . . . . . 3 1 . . . 1 1 5 . . 7 3 . Indirectly 2 | . . . . . . . . . . . . . . . . . . . . 2 . . . . . Trap Hack Attempts . | . . . . . . . . . . . . . . . . . . . . . . . . . . Triggered . | . . . . . . . . . . . . . . . . . . . . . . . . . . Disarmed . | . . . . . . . . . . . . . . . . . . . . . . . . . . Reprogrammed 6 | . . . . . . . . . . . . . 6 . . . . . . . . . . . . Reused 7 | . . . . . . . . . . . . . 1 . . . . . . 6 . . . . . Traps Extracted . | . . . . . . . . . . . . . . . . . . . . . . . . . . Installed 11 | . . 3 2 . . . . . . . . . . . . . . . . 6 . . . . . Triggered 7 | . . . . . . . . . . . . . 1 . . . . . . 6 . . . . . Most Traps Carried 8 | . . 2 2 . . . . . . . . 6 6 8 8 8 8 8 8 8 2 . . . . Machines | -11 -10 -10 -9 -9 -8 -7 -6 -5 -5 -5 -5 -4 -4 -4 -4 -4 -3 -3 -3 -3 -2 -2 -1 -1 -1 ---------- Run | Yrd Mat Min Mat Sto Mat Fac Fac Fac Upp Upp Zhi Pro Fac Upp Upp War Pro Res Qua Frg Res Tes Acc Com Ac0 Machines Disabled 103 | . 1 . 6 7 1 . . 2 . . . . 3 . . 1 . 2 19 20 3 9 9 17 3 Max in Single Turn 2 | . 1 . 1 2 1 . . 1 . . . . 1 . . 1 . 1 1 2 1 1 1 2 1 Garrison Access 6 | . . . . . . . . 1 . . . . 1 . . . . . . 1 2 . 1 . . Phase Generator 1 | . . . . . . . . . . . . . . . . . . . . . . . . 1 . Energy Cycler 2 | . . . . . . . . . . . . . . . . . . . . . . . 2 . . Machines Repaired . | . . . . . . . . . . . . . . . . . . . . . . . . . . Machines Dismantled 1 | . . . . . . . . . . . . . . . . 1 . . . . . . . . . Machines Sabotaged . | . . . . . . . . . . . . . . . . . . . . . . . . . . Overloaded Fab Kills . | . . . . . . . . . . . . . . . . . . . . . . . . . . Hacking | -11 -10 -10 -9 -9 -8 -7 -6 -5 -5 -5 -5 -4 -4 -4 -4 -4 -3 -3 -3 -3 -2 -2 -1 -1 -1 --------- Run | Yrd Mat Min Mat Sto Mat Fac Fac Fac Upp Upp Zhi Pro Fac Upp Upp War Pro Res Qua Frg Res Tes Acc Com Ac0 Machines Accessed 99 | . 9 . 7 7 2 2 1 7 2 . 4 . 17 . . 2 . 4 14 7 1 8 4 1 . Terminals 58 | . 6 . 4 6 2 . . 3 1 . . . 10 . . . . 3 10 4 . 5 3 1 . Fabricators 4 | . . . . . . 1 . . . . . . 1 . . . . 1 . . . 1 . . . Repair Stations 5 | . 1 . . . . . . 1 . . . . 1 . . . . . 2 . . . . . . Recycling Units 6 | . 2 . 1 1 . . . 1 . . . . 1 . . . . . . . . . . . . Scanalyzers 11 | . . . 2 . . 1 . 1 . . . . 2 . . . . . 2 2 . 1 . . . Garrison Access 8 | . . . . . . . 1 1 . . . . 2 . . . . . . 1 1 1 1 . . Total Hacks 263 | . 19 . 17 26 5 4 6 24 2 . 17 . 49 . . 6 . 9 32 18 1 21 6 1 . Successful 127 | . 10 . 9 12 2 2 . 11 2 . 17 . 21 . . 6 . 2 13 9 1 8 2 . . Failed 134 | . 9 . 7 14 3 2 6 13 . . . . 28 . . . . 7 19 8 . 13 4 1 . Catastrophic 27 | . 2 . . 3 . 1 1 1 . . . . 6 . . . . 2 2 1 . 6 1 1 . Database Lockouts 2 | . . . 1 . . . . . . . . . . . . . . . . 1 . . . . . Manual 113 | . 16 . 8 13 1 . . 10 . . . . 17 . . . . 3 16 9 . 16 3 1 . Terminals 160 | . 15 . 11 24 5 . . 8 1 . . . 33 . . . . 7 22 11 . 17 5 1 . Fabricators 7 | . . . . . . 2 . . . . . . 1 . . . . 2 . . . 2 . . . Repair Stations 11 | . 1 . . . . . . 2 . . . . 2 . . . . . 6 . . . . . . Recycling Units 14 | . 3 . 2 2 . . . 6 . . . . 1 . . . . . . . . . . . . Scanalyzers 26 | . . . 4 . . 2 . 3 . . . . 7 . . . . . 4 5 . 1 . . . Garrison Access 21 | . . . . . . . 6 5 . . . . 5 . . . . . . 2 1 1 1 . . Terminal Hacks 69 | . 5 . 3 8 1 . . . 2 . 17 . 10 . . 6 . 2 5 4 . 4 2 . . Record 7 | . . . . . . . . . 1 . 5 . . . . . . . 1 . . . . . . Part Schematic 5 | . . . . 1 . . . . . . 4 . . . . . . . . . . . . . . Robot Schematic 1 | . 1 . . . . . . . . . . . . . . . . . . . . . . . . Robot Analysis 4 | . . . . . . . . . . . 4 . . . . . . . . . . . . . . Prototype ID Bank 10 | . . . . 1 . . . . . . 4 . . . . 5 . . . . . . . . . Open Door 5 | . . . . 1 . . . . 1 . . . . . . 1 . 1 1 . . . . . . Level Access Points 1 | . . . . . . . . . . . . . . . . . . . . . . . 1 . . Branch Access Points 3 | . . . 1 . . . . . . . . . 1 . . . . . . . . . 1 . . Emergency Access Points 2 | . . . 1 . . . . . . . . . . . . . . . . 1 . . . . . Alert Level 6 | . . . . 1 1 . . . . . . . 1 . . . . . 2 . . 1 . . . Unreport Threat 4 | . . . . 2 . . . . . . . . . . . . . . . . . 2 . . . Locate Traps 11 | . 4 . . 1 . . . . . . . . 3 . . . . . 1 1 . 1 . . . Reprogram Traps 1 | . . . . . . . . . . . . . 1 . . . . . . . . . . . . Dispatch Records 1 | . . . . . . . . . . . . . 1 . . . . . . . . . . . . Hauler Manifests 3 | . . . 1 1 . . . . . . . . 1 . . . . . . . . . . . . Registered Components 1 | . . . . . . . . . . . . . . . . . . 1 . . . . . . . Registered Prototypes 1 | . . . . . . . . . . . . . 1 . . . . . . . . . . . . Zone Layout 2 | . . . . . . . . . . . . . 1 . . . . . . 1 . . . . . Proto ID Catalog 1 | . . . . . . . . . . . . . . . . . . . . 1 . . . . . Fabricator Hacks . | . . . . . . . . . . . . . . . . . . . . . . . . . . Repair Station Hacks 7 | . 1 . . . . . . 2 . . . . 1 . . . . . 3 . . . . . . Scan Component 3 | . . . . . . . . 1 . . . . . . . . . . 2 . . . . . . Repair 2 | . . . . . . . . 1 . . . . . . . . . . 1 . . . . . . Refit 2 | . 1 . . . . . . . . . . . 1 . . . . . . . . . . . . Recycling Unit Hacks 4 | . . . 1 1 . . . 1 . . . . 1 . . . . . . . . . . . . Retrieve Components 4 | . . . 1 1 . . . 1 . . . . 1 . . . . . . . . . . . . Scanalyzer 13 | . . . 3 . . 2 . 1 . . . . 4 . . . . . 1 1 . 1 . . . Insert Component 3 | . . . 1 . . 1 . . . . . . . . . . . . . . . 1 . . . Analyze 1 | . . . . . . 1 . . . . . . . . . . . . . . . . . . . Retrieve Study 9 | . . . 2 . . . . 1 . . . . 4 . . . . . 1 1 . . . . . Garrison Access Hacks 2 | . . . . . . . . . . . . . 1 . . . . . . . 1 . . . . Seal Access 2 | . . . . . . . . . . . . . 1 . . . . . . . 1 . . . . Unauthorized Hacks 32 | . 4 . 2 3 1 . . 7 . . . . 4 . . . . . 4 4 . 3 . . . Terminals 23 | . 2 . 1 2 1 . . 3 . . . . 4 . . . . . 4 3 . 3 . . . Track 3 | . . . . . . . . 1 . . . . . . . . . . . 1 . 1 . . . Assimilate 3 | . . . . 1 . . . 1 . . . . 1 . . . . . . . . . . . . Botnet 14 | . 2 . 1 1 1 . . 1 . . . . 3 . . . . . 1 2 . 2 . . . Skim 3 | . . . . . . . . . . . . . . . . . . . 3 . . . . . . Fabricators . | . . . . . . . . . . . . . . . . . . . . . . . . . . Repair Stations . | . . . . . . . . . . . . . . . . . . . . . . . . . . Recycling Units 8 | . 2 . 1 1 . . . 4 . . . . . . . . . . . . . . . . . Monitor 1 | . . . . . . . . 1 . . . . . . . . . . . . . . . . . Reject 1 | . . . . . . . . 1 . . . . . . . . . . . . . . . . . Recyclers 1 | . . . . . . . . 1 . . . . . . . . . . . . . . . . . Mask 1 | . . . . . . . . 1 . . . . . . . . . . . . . . . . . Tunnel 4 | . 2 . 1 1 . . . . . . . . . . . . . . . . . . . . . Scanalyzers . | . . . . . . . . . . . . . . . . . . . . . . . . . . Garrison Access 1 | . . . . . . . . . . . . . . . . . . . . 1 . . . . . Jam 1 | . . . . . . . . . . . . . . . . . . . . 1 . . . . . Data Cores Recovered 4 | . 1 . . 1 . . . . . . . . . . . . . . . 1 . . 1 . . Used 1 | . . . . . . . . . . . . . . . . . . . . 1 . . . . . Hacking Detections 75 | . 3 . 4 6 2 2 1 6 . . . . 15 . . . . 4 13 7 . 7 4 1 . Full Trace Events 11 | . . . . 1 1 1 1 2 . . . . 2 . . . . 1 2 . . . . . . Feedback Events 2 | . . . . . . . . 1 . . . . . . . . . . 1 . . . . . . Corruption 1 | . . . . . . . . 1 . . . . . . . . . . . . . . . . . Hackware Fried 1 | . . . . . . . . . . . . . . . . . . . 1 . . . . . . Feedback Blocked . | . . . . . . . . . . . . . . . . . . . . . . . . . . Robot Schematics Acquired 4 | . 1 . . . . . . . . . . . . . . . . . . 1 . 2 . . . Robots Built . | . . . . . . . . . . . . . . . . . . . . . . . . . . Authchips . | . . . . . . . . . . . . . . . . . . . . . . . . . . Time . | . . . . . . . . . . . . . . . . . . . . . . . . . . Total Robot Build Rating . | . . . . . . . . . . . . . . . . . . . . . . . . . . Part Schematics Acquired 9 | . . . . 1 . 1 . . . . 4 . . . . . . . . 3 . . . . . Parts Built . | . . . . . . . . . . . . . . . . . . . . . . . . . . Authchips . | . . . . . . . . . . . . . . . . . . . . . . . . . . Time . | . . . . . . . . . . . . . . . . . . . . . . . . . . Total Part Build Rating . | . . . . . . . . . . . . . . . . . . . . . . . . . . Part Studies Acquired 9 | . . . 2 . . . . 1 . . . . 4 . . . . . 1 1 . . . . . Parts Repaired 1 | . . . . . . . . 1 . . . . . . . . . . . . . . . . . Time 103 | . . . . . . . . 35 . . . . . . . . . . 68 . . . . . . Parts Recycled . | . . . . . . . . . . . . . . . . . . . . . . . . . . Recycled Matter . | . . . . . . . . . . . . . . . . . . . . . . . . . . Retrieved Matter . | . . . . . . . . . . . . . . . . . . . . . . . . . . Retrieved Components 27 | . . . 1 10 . . . 7 . . . . 9 . . . . . . . . . . . . Parts Scanalyzed 1 | . . . . . . 1 . . . . . . . . . . . . . . . . . . . Part Schematics Acquired 1 | . . . . . . 1 . . . . . . . . . . . . . . . . . . . Parts Damaged . | . . . . . . . . . . . . . . . . . . . . . . . . . . Bothacking | -11 -10 -10 -9 -9 -8 -7 -6 -5 -5 -5 -5 -4 -4 -4 -4 -4 -3 -3 -3 -3 -2 -2 -1 -1 -1 ------------ Run | Yrd Mat Min Mat Sto Mat Fac Fac Fac Upp Upp Zhi Pro Fac Upp Upp War Pro Res Qua Frg Res Tes Acc Com Ac0 Used RIF Installer . | . . . . . . . . . . . . . . . . . . . . . . . . . . Robots Hacked . | . . . . . . . . . . . . . . . . . . . . . . . . . . Non-combat . | . . . . . . . . . . . . . . . . . . . . . . . . . . Combat . | . . . . . . . . . . . . . . . . . . . . . . . . . . Robot Hacks Applied . | . . . . . . . . . . . . . . . . . . . . . . . . . . Relay Couplers Released 8 | . . . . . . . . 2 . . . . . . . . . . . . 2 3 1 . . Machine Destruction 5 | . . . . . . . . 2 . . . . . . . . . . . . 2 . 1 . . Programmers 3 | . . . . . . . . . . . . . . . . . . . . . . 3 . . . Fabnet Peak Effective % . | . . . . . . . . . . . . . . . . . . . . . . . . . . Robots Rewired 7 | . . . . . . . . . . . . 2 . . . 5 . . . . . . . . . Allies Hacked . | . . . . . . . . . . . . . . . . . . . . . . . . . . Hacks Repelled . | . . . . . . . . . . . . . . . . . . . . . . . . . . Allies | -11 -10 -10 -9 -9 -8 -7 -6 -5 -5 -5 -5 -4 -4 -4 -4 -4 -3 -3 -3 -3 -2 -2 -1 -1 -1 -------- Run | Yrd Mat Min Mat Sto Mat Fac Fac Fac Upp Upp Zhi Pro Fac Upp Upp War Pro Res Qua Frg Res Tes Acc Com Ac0 Total Allies 11 | . . . . 2 . . . 1 . . . 2 1 . . 5 . . . . . . . . . Largest Group 5 | . . . . 2 . . . 1 . . . 1 1 . . 5 1 . . . . . . . . Highest-Rated Group 279 | . . . . 62 . . . 10 . . . 47 10 . . 279 54 . . . . . . . . Highest-Rated Ally 64 | . . . . 31 . . . 10 . . . 47 10 . . 64 54 . . . . . . . . Total Orders 5 | . . . . . . . . . . . . . . . . 5 . . . . . . . . . STAY 3 | . . . . . . . . . . . . . . . . 3 . . . . . . . . . FOLLOW 2 | . . . . . . . . . . . . . . . . 2 . . . . . . . . . Ally Attacks 100 | . . . . 73 . . . . . . . 2 . . . 25 . . . . . . . . . Total Damage 1788 | . . . . 1026 . . . . . . . 41 . . . 721 . . . . . . . . . Kills 22 | . . . . 19 . . . . . . . . . . . 3 . . . . . . . . . Allies Corrupted 1 | . . . . . . . . . . . . . . . . 1 . . . . . . . . . Allies Melted 2 | . . . . . . . . . . . . 1 . . . . . . . . 1 . . . . Intel | -11 -10 -10 -9 -9 -8 -7 -6 -5 -5 -5 -5 -4 -4 -4 -4 -4 -3 -3 -3 -3 -2 -2 -1 -1 -1 ------- Run | Yrd Mat Min Mat Sto Mat Fac Fac Fac Upp Upp Zhi Pro Fac Upp Upp War Pro Res Qua Frg Res Tes Acc Com Ac0 Active Infowar (turns) 29972 | 5 1067 488 2232 1104 57 539 657 1072 524 379 85 942 1203 1203 756 1703 318 147 3570 1854 1735 1692 5776 565 299 Optics 10420 | . . . . . . . . . . . . . 65 . . . . 147 3570 1839 831 1692 1927 349 . Sensors 12520 | . . . . . . . . 876 524 379 85 942 1203 1203 756 1703 318 . 2062 860 615 994 . . . Terrain 1325 | . . . . . . . . . . . . . . . . . . . . . 823 . . 203 299 Structural 3059 | . . . 1610 . 57 539 657 196 . . . . . . . . . . . . . . . . . Seismic 4306 | 5 1067 488 1642 1104 . . . . . . . . . . . . . . . . . . . . . Triangulation 11 | . . . . . . . . . . . . . . . . . . . . . . . . 11 . Cloaking 6714 | . . . . . . . . . . . . . . . . . . . . 13 1735 689 4276 1 . Jamming 1611 | . . . . . . . . . . . . . . . . . . . 467 1144 . . . . . ECM 64 | . . . . . . . . . . . . . . . . . . . . 2 61 . . 1 . Robot Analysis Total 4 | . . . . . . . . . . . 4 . . . . . . . . . . . . . . Derelict Logs Recovered 9 | . . 2 . . . . . . 2 . . 2 . 1 2 . . . . . . . . . . Drone Launches . | . . . . . . . . . . . . . . . . . . . . . . . . . . Drone Recoveries . | . . . . . . . . . . . . . . . . . . . . . . . . . . Exploration | -11 -10 -10 -9 -9 -8 -7 -6 -5 -5 -5 -5 -4 -4 -4 -4 -4 -3 -3 -3 -3 -2 -2 -1 -1 -1 ------------- Run | Yrd Mat Min Mat Sto Mat Fac Fac Fac Upp Upp Zhi Pro Fac Upp Upp War Pro Res Qua Frg Res Tes Acc Com Ac0 Turns Passed 46520 | 60 1068 571 2270 1659 665 539 657 1390 524 379 93 942 1729 1329 756 1713 427 310 3570 3365 1735 1692 7838 10632 607 Spaces Moved 30603 | 41 697 343 1001 782 329 314 476 1697 1052 1090 184 1323 1986 972 595 1096 348 234 2483 1723 1506 788 4410 4848 285 Core 12 | 1 . . . . . . . . . . . . . . . . . . . . . . . . 11 Treads 5254 | . 3 8 163 3 . . . . . . . . . . . . . . . . . . 1745 3332 . Legs 14486 | . . . . . . . . 96 . . . . 190 972 595 1096 348 234 2483 1723 1506 788 2665 1516 274 Wheels 3915 | 40 694 335 838 779 329 314 476 110 . . . . . . . . . . . . . . . . . Hover 6174 | . . . . . . . . 729 1052 1090 184 1323 1796 . . . . . . . . . . . . Flight 762 | . . . . . . . . 762 . . . . . . . . . . . . . . . . . Fastest Speed 14 | 50 100 130 120 125 120 100 93 14 30 30 30 14 30 120 120 105 105 96 96 90 80 106 100 113 50 Average Speed 101 | 98 114 135 161 145 133 105 97 39 30 30 30 29 42 120 120 111 105 99 99 105 104 110 126 138 114 Slowest Speed 320 | 100 160 320 320 320 235 120 113 209 30 30 88 34 120 120 120 186 105 105 172 180 110 115 250 173 189 Overloaded Moves 116 | . . . . . . . . 101 . . . 15 . . . . . . . . . . . . . Propulsion Burnouts . | . . . . . . . . . . . . . . . . . . . . . . . . . . Robots Hopped 1 | . . . . . . . . 1 . . . . . . . . . . . . . . . . . Potential Cave-ins 14 | . . . . . . . . . . . . . . . . . . . . 8 2 . . 3 1 Cave-ins Triggered 3 | . . . . . . . . . . . . . . . . . . . . 2 . . . . 1 Teleports 4 | . . . . . . . . . . . . . . . . . . . 1 1 . . . 1 1 Exploration Rate (%) 62 | 3 96 82 89 95 27 11 14 27 95 94 60 91 54 94 80 90 53 8 98 35 28 94 95 91 23 Regions Visited 25 Branch Regions 15 Pre-discovered Areas 8 | . 2 1 1 1 . . . . . . 3 . . . . . . . . . . . . . . Known Exits Taken 16 | . . . 1 . . . . 1 1 1 1 1 1 1 1 1 1 . 1 1 1 1 1 . . Unknown Exits Taken 9 | 1 1 1 . 1 1 1 1 . . . . . . . . . . 1 . . . . . 1 . Scrap Searched 18 | . . 1 . . . . . . 3 4 . 1 . 3 2 . 4 . . . . . . . . Spaces Dug 323 | . 13 . 19 8 . 5 . 2 2 1 . 23 48 . 18 . . 2 5 26 10 20 78 38 5 Terrain Destroyed 1665 | . 32 39 53 167 . 8 . 34 2 1 . 33 100 6 19 2 61 10 32 53 18 243 162 520 70 Melee 96 | . . . 1 8 . . . 1 2 1 . 5 33 . . . . . 3 17 8 8 4 5 . Projectile 836 | . . . . . . . . 9 . . . 24 32 6 3 2 19 10 28 33 9 169 47 375 70 AOE 699 | . 32 39 52 159 . 8 . 23 . . . . 29 . 15 . 42 . . . . 64 98 138 . Terrain Rammed . | . . . . . . . . . . . . . . . . . . . . . . . . . . Walls Destroyed . | . . . . . . . . . . . . . . . . . . . . . . . . . . Machines Disabled . | . . . . . . . . . . . . . . . . . . . . . . . . . . Actions | -11 -10 -10 -9 -9 -8 -7 -6 -5 -5 -5 -5 -4 -4 -4 -4 -4 -3 -3 -3 -3 -2 -2 -1 -1 -1 --------- Run | Yrd Mat Min Mat Sto Mat Fac Fac Fac Upp Upp Zhi Pro Fac Upp Upp War Pro Res Qua Frg Res Tes Acc Com Ac0 Total 41675 | 53 865 408 1376 1062 492 511 643 2244 1237 1131 217 1703 2495 1049 618 1567 376 276 3340 2932 1583 1192 5762 8112 431 Wait 5997 | 1 58 23 99 56 81 160 136 208 151 32 5 205 110 28 6 326 6 2 501 696 10 97 521 2460 19 Move 30570 | 40 696 342 1000 781 328 313 475 1694 1051 1089 183 1322 1985 971 594 1095 347 233 2482 1720 1505 786 4409 4846 283 Hop 1 | . . . . . . . . 1 . . . . . . . . . . . . . . . . . Pick Up 469 | 3 28 3 32 12 9 10 3 45 3 . 2 4 20 1 3 20 1 7 26 51 1 6 82 91 6 Fast Attach 466 | 7 2 . 22 18 7 4 6 43 4 . 11 5 43 2 1 20 . 4 63 56 13 21 55 53 6 Attach 227 | . 1 7 7 8 4 1 1 39 1 . . 6 18 . . 3 1 2 15 32 1 3 40 32 5 Detach 82 | . 1 . . 2 . . 1 21 1 . . 4 10 . . 2 . . 7 13 1 1 13 5 . Swap 521 | . 17 3 35 36 3 3 . 26 6 . . 7 28 12 3 9 5 2 23 49 6 69 102 46 31 Drop 711 | . 11 2 33 24 14 11 3 64 7 . 12 5 44 3 3 34 2 7 80 64 8 25 123 126 6 Fire 2128 | 2 51 25 145 110 46 9 18 67 7 . . 118 149 32 8 5 14 19 114 198 13 134 384 386 74 Melee 362 | . . . 1 15 . . . 35 6 10 4 10 75 . . . . . 29 42 24 48 14 49 . Ram . | . . . . . . . . . . . . . . . . . . . . . . . . . . Kick 3 | . . . . . . . . 1 . . . . . . . . . . . . 1 1 . . . Crush 1 | . . . . . . . . . . . . . . . . . . . . . . . . 1 . Escape Stasis 54 | . . . . . . . . . . . . . 13 . . . . . . 5 . 1 19 15 1 Rewire 64 | . . . . . . . . . . . . 17 . . . 45 . . . . . . . 2 . Trap 11 | . . 3 2 . . . . . . . . . . . . . . . . 6 . . . . . Miscellaneous 8 | . . . . . . . . . . . . . . . . 8 . . . . . . . . . Route ------- -11/Scrapyard -10/Materials (discovered 5 exits: *Mat x3 / [*Min x2]) -10/Mines (discovered 3 exits: *Mat x2 / [*Sub]) -9/Materials (discovered 5 exits: *Mat x3 / *Min / *Sto) -9/Storage -8/Materials -7/Factory (discovered 2 exits: *Fac / [*Low]) -6/Factory (discovered 2 exits: *Fac / [*Low]) -5/Factory (discovered 2 exits: *Upp x2) -5/Upper Caves -5/Upper Caves (discovered 2 exits: *Fac / *Zhi) -5/Zhirov -4/Proximity Caves -4/Factory (discovered 4 exits: *Res x2 / *Upp x2) -4/Upper Caves -4/Upper Caves (discovered 2 exits: *Res / *War) -4/Warlord -3/Proximity Caves -3/Research -3/Quarantine (discovered 3 exits: *Res / *Sec / *Frg) -3/Protoforge -2/Research -2/Testing -1/Access (discovered 2 exits: *Sur / *Com) -1/Command (discovered 3 exits: *Sur x2 / [*Ac0]) -1/Access_0 Near Former Tau Ceti IV History --------- Turn | Location | Event 15 | -11/Scrapyard | Discovered new exit (range 14) 61 | -11/Scrapyard | Entered Materials 257 | -10/Materials | Discovered new exit (range 15) 315 | -10/Materials | Build established: Mutant 411 | -10/Materials | Discovered new exit (range 12) 662 | -10/Materials | Discovered new exit (range 14) 899 | -10/Materials | Discovered new exit (range 6) 1017 | -10/Materials | Discovered new exit (range 16) 1129 | -10/Materials | Entered Mines 1172 | -10/Mines | Learned location of Storage (-9) 1420 | -10/Mines | Learned Materials emergency access door positions 1426 | -10/Mines | Discovered new exit (range 13) 1464 | -10/Mines | Found a hidden stash of uninstalled traps 1523 | -10/Mines | Discovered new exit (range 6) 1598 | -10/Mines | Assembled infested the area 1644 | -10/Mines | Discovered new exit (range 10) 1647 | -10/Mines | Core integrity fell below 50% 1658 | -10/Mines | Core integrity fell below 20% 1700 | -10/Mines | Entered Materials 1700 | -9/Materials | Evolved 2 slots: Utility x1, Weapon x1 1703 | -9/Materials | Lost 7 parts (3n2u2w) 2008 | -9/Materials | Build established: Skirmisher 2505 | -9/Materials | Identified exit to Mines 2505 | -9/Materials | Identified exit to Storage 2778 | -9/Materials | Discovered new exit (range 16) 2805 | -9/Materials | Central database locked down 3396 | -9/Materials | Discovered new exit (range 7) 3700 | -9/Materials | First assault squad dispatched 3743 | -9/Materials | Discovered new exit (range 12) 3830 | -9/Materials | Core integrity fell below 50% 3929 | -9/Materials | Build established: Scavenger-Tank 3970 | -9/Materials | Entered Storage 3985 | -9/Storage | Met a pair of Derelict thieves 4370 | -9/Storage | First assault squad dispatched 4925 | -9/Storage | Core integrity fell below 20% 5022 | -9/Storage | Discovered new exit (range 4) 5111 | -9/Storage | Destroyed 13 combat bots 5620 | -9/Storage | Destroyed 9 combat bots 5629 | -9/Storage | Entered Materials 5629 | -8/Materials | Evolved 2 slots: Propulsion x1, Utility x1 5783 | -8/Materials | Build established: Tank 6006 | -8/Materials | Discovered new exit (range 10) 6010 | -8/Materials | Met 7R-MNS 6294 | -8/Materials | Entered Factory 6294 | -7/Factory | Evolved 2 slots: Propulsion x1, Utility x1 6295 | -7/Factory | Caught up to 7R-MNS 6428 | -7/Factory | Build established: Scavenger-Tank 6449 | -7/Factory | Garrison activated, responded to threat 6518 | -7/Factory | Discovered new exit (range 12) 6812 | -7/Factory | Discovered new exit (range 10) 6833 | -7/Factory | Entered another Factory area 6833 | -6/Factory | Evolved 2 slots: Propulsion x1, Utility x1 6834 | -6/Factory | Caught up to 7R-MNS 7145 | -6/Factory | Discovered new exit (range 9) 7450 | -6/Factory | Discovered new exit (range 15) 7483 | -6/Factory | Garrison activated, responded to threat 7490 | -6/Factory | Entered another Factory area 7490 | -5/Factory | Evolved 2 slots: Propulsion x1, Utility x1 7491 | -5/Factory | Caught up to 7R-MNS 7538 | -5/Factory | Garrison activated, responded to threat 7661 | -5/Factory | 7R-MNS lamented failing the tripod run 7769 | -5/Factory | Lost 22 parts (2p5n9u6w) 7803 | -5/Factory | Discovered new exit (range 15) 7893 | -5/Factory | Core integrity fell below 50% 7969 | -5/Factory | Discovered new exit (range 6) 7973 | -5/Factory | Identified exit to Upper Caves 8113 | -5/Factory | System corruption reached 10% 8153 | -5/Factory | Found Prototype Device 8159 | -5/Factory | Identified Multitargeting Array 8161 | -5/Factory | Lost 3 parts (1p2u) 8207 | -5/Factory | Found Prototype Device 8216 | -5/Factory | Found Prototype Device 8220 | -5/Factory | Identified Exp. Focal Shield 8221 | -5/Factory | Identified Thermal Barrier 8686 | -5/Factory | Build established: Scavenger-Sprinter 8739 | -5/Factory | Repaired Cld. Airjet 8880 | -5/Factory | Entered Upper Caves 8902 | -5/Upper Caves | Attracted the attention of an 0b10 checkpoint 9089 | -5/Upper Caves | Learned location of 2 exits from Factory 9106 | -5/Upper Caves | Learned Factory machine intel 9206 | -5/Upper Caves | Discovered new exit (range 16) 9211 | -5/Upper Caves | Identified exit to Upper Caves 9404 | -5/Upper Caves | Entered another Upper Caves area 9407 | -5/Upper Caves | Discovered new exit (range 7) 9411 | -5/Upper Caves | Identified exit to Factory 9506 | -5/Upper Caves | Encountered a Warlord checkpoint 9607 | -5/Upper Caves | Discovered new exit (range 5) 9764 | -5/Upper Caves | Identified exit to Zhirov 9783 | -5/Upper Caves | Entered Zhirov 9784 | -5/Zhirov | Discovered new exit (range 3) 9790 | -5/Zhirov | Met Zhirov 9797 | -5/Zhirov | Learned location of Quarantine (-3) 9797 | -5/Zhirov | Learned location of Testing (-2) 9797 | -5/Zhirov | Learned location of Command (-1) 9799 | -5/Zhirov | Zhirov requested help retrieving the SGEMP Prototype 9804 | -5/Zhirov | Found Alien Artifact 9804 | -5/Zhirov | Identified Integrated Reactor 9804 | -5/Zhirov | Installed Integrated Reactor, increased core energy generation (+10) 9860 | -5/Zhirov | Found Alien Artifact 9876 | -5/Zhirov | Identified exit to Proximity Caves 9876 | -5/Zhirov | Entered Proximity Caves 9878 | -4/Proximity Caves | Spotter reported a threat 9879 | -4/Proximity Caves | Spotter reported a threat 10412 | -4/Proximity Caves | Found Alien Artifact 10412 | -4/Proximity Caves | Identified Core Expander 10412 | -4/Proximity Caves | Installed Core Expander, added new Power slot 10421 | -4/Proximity Caves | Learned Research terminal intel 10781 | -4/Proximity Caves | Attracted the attention of an 0b10 checkpoint 10796 | -4/Proximity Caves | Core integrity fell below 20% 10815 | -4/Proximity Caves | Discovered exit to Factory (range 9) 10816 | -4/Proximity Caves | Learned Research terminal intel 10818 | -4/Proximity Caves | Entered Factory 10818 | -4/Factory | Evolved 2 slots: Utility x1, Weapon x1 10819 | -4/Factory | Identified exit to Upper Caves 10819 | -4/Factory | Identified exit to Research 10820 | -4/Factory | Loaded intel: 238 machine locations 10880 | -4/Factory | Discovered exit to Upper Caves (range 7) 11068 | -4/Factory | Search patrols dispatched 11156 | -4/Factory | Discovered exit to Research (range 7) 11300 | -4/Factory | Found Prototype Device 11300 | -4/Factory | Identified Adv. EM Shield 11379 | -4/Factory | Garrison activated, responded to threat 11568 | -4/Factory | First assault squad dispatched 12297 | -4/Factory | Lost 5 parts (1n3u1w) 12340 | -4/Factory | System corruption reached 10% 12370 | -4/Factory | Lost 3 parts (1u2w) 12547 | -4/Factory | Entered Upper Caves 13150 | -4/Upper Caves | Build established: Scavenger-Skirmisher 13678 | -4/Upper Caves | Discovered new exit (range 13) 13692 | -4/Upper Caves | Identified exit to Upper Caves 13780 | -4/Upper Caves | Learned location of 1 exit from Upper Caves 13876 | -4/Upper Caves | Entered another Upper Caves area 14239 | -4/Upper Caves | Attracted the attention of an 0b10 checkpoint 14268 | -4/Upper Caves | Learned Research garrison access intel 14419 | -4/Upper Caves | Identified exit to Warlord 14632 | -4/Upper Caves | Entered Warlord 14673 | -4/Warlord | System corruption cleaned by Quarantine Array 14759 | -4/Warlord | Found Prototype Device 14759 | -4/Warlord | Identified Exp. Phase Shifter 14764 | -4/Warlord | Found Prototype Reactor 14769 | -4/Warlord | Found Prototype Processor 14771 | -4/Warlord | Found Exp. Focal Shield 15153 | -4/Warlord | Received a Watcher feed algorithm from an ecstatic Tinkerer 15206 | -4/Warlord | Identified Exp. Core Analyzer 15210 | -4/Warlord | Found Prototype Device 15383 | -4/Warlord | Warlord's base attacked by MAIN.C 15404 | -4/Warlord | Met Warlord 15437 | -4/Warlord | Found Prototype Energy Gun 15437 | -4/Warlord | Identified Vortex Shotgun 15444 | -4/Warlord | Found Prototype Energy Cannon 15444 | -4/Warlord | Identified Vortex Driver 15456 | -4/Warlord | Found Vortex Shotgun 15462 | -4/Warlord | Found Vortex Driver 15645 | -4/Warlord | Lost 3 allies 15714 | -4/Warlord | Lost 11 allies 15733 | -4/Warlord | Warlord forces counterattacked 15794 | -4/Warlord | Spotted Executioner 15797 | -4/Warlord | Destroyed Executioner 15824 | -4/Warlord | Found Exp. Core Analyzer 15826 | -4/Warlord | Found Exp. Core Analyzer 15833 | -4/Warlord | Spotted Executioner 15834 | -4/Warlord | Lost 7 allies 15908 | -4/Warlord | Lost 5 allies 15967 | -4/Warlord | Lost 8 allies 16005 | -4/Warlord | Spotted Striker 16007 | -4/Warlord | Spotted Striker 16058 | -4/Warlord | Warlord base infiltrated, sounded retreat 16083 | -4/Warlord | Spotted Executioner 16135 | -4/Warlord | Lost 23 allies 16287 | -4/Warlord | Discovered new exit (range 12) 16305 | -4/Warlord | Identified exit to Proximity Caves 16345 | -4/Warlord | Entered Proximity Caves 16345 | -3/Proximity Caves | Accompanied by 1 ally 16349 | -3/Proximity Caves | Found DCF Scrap (14 items) 16662 | -3/Proximity Caves | P-80 Master assimilated allied Archangel 7a 16758 | -3/Proximity Caves | Discovered exit to Research (range 15) 16772 | -3/Proximity Caves | Entered Research 16772 | -3/Research | Evolved 2 slots: Utility x1, Weapon x1 16773 | -3/Research | Loaded intel: 23 terminal locations 16774 | -3/Research | Loaded intel: 4 garrison access locations 16801 | -3/Research | Watched by a mysterious "MATRIX" hacker. 16956 | -3/Research | Build established: Scavenger-Tank 17013 | -3/Research | Found Prototype Launcher 17013 | -3/Research | Identified Com. Tesla Bomb Launcher 17059 | -3/Research | Found Gamma Bomb Array 17078 | -3/Research | Discovered new exit (range 7) 17082 | -3/Research | Entered Quarantine 17381 | -3/Quarantine | Cryocooling Duct disabled 17383 | -3/Quarantine | Cryocooling Duct disabled 17396 | -3/Quarantine | Ambient heat levels rising (+20) 17396 | -3/Quarantine | Non-combat units ordered to evacuate 17398 | -3/Quarantine | Ambient heat levels rising (+20) 17398 | -3/Quarantine | Combat units ordered to evacuate 17498 | -3/Quarantine | Quarantine Guard activated 17516 | -3/Quarantine | Build established: Scavenger-Skirmisher 17518 | -3/Quarantine | Found Alien Slashing Weapon 17518 | -3/Quarantine | Identified Sigix Broadsword 17556 | -3/Quarantine | Spotted Quarantine Guard 17564 | -3/Quarantine | Destroyed Quarantine Guard 17583 | -3/Quarantine | Spotted Quarantine Guard 17588 | -3/Quarantine | Destroyed Quarantine Guard 17613 | -3/Quarantine | Spotted Quarantine Guard 17618 | -3/Quarantine | Destroyed Quarantine Guard 17637 | -3/Quarantine | Spotted Quarantine Guard 17646 | -3/Quarantine | Destroyed Quarantine Guard 17669 | -3/Quarantine | Spotted Quarantine Guard 17677 | -3/Quarantine | Destroyed Quarantine Guard 17714 | -3/Quarantine | Spotted Quarantine Guard 17719 | -3/Quarantine | Destroyed Quarantine Guard 17868 | -3/Quarantine | Discovered new exit (range 10) 17868 | -3/Quarantine | Spotted Quarantine Guard 17873 | -3/Quarantine | Destroyed Quarantine Guard 17891 | -3/Quarantine | Spotted Quarantine Guard 17906 | -3/Quarantine | Destroyed Quarantine Guard 17981 | -3/Quarantine | Build established: Scavenger-Assassin 18080 | -3/Quarantine | Spotted Quarantine Guard 18083 | -3/Quarantine | Spotted Quarantine Guard 18134 | -3/Quarantine | Destroyed Quarantine Guard 18183 | -3/Quarantine | Destroyed Quarantine Guard 18515 | -3/Quarantine | Found Alien Artifact 18515 | -3/Quarantine | Identified Phase Redirector 18703 | -3/Quarantine | Identified exit to Research 18711 | -3/Quarantine | Imp. Hacking Suite fried by hacking feedback 18843 | -3/Quarantine | Build established: Scavenger-Gladiator 18881 | -3/Quarantine | Found Alien Energy Cannon 19036 | -3/Quarantine | Met incapacitated Sigix Warrior 19036 | -3/Quarantine | Lockdown squad dispatched 19038 | -3/Quarantine | Acquired the access code to the Sigix quarantine chamber 19040 | -3/Quarantine | Unlocked Sigix quarantine chamber 19084 | -3/Quarantine | Spotted Lightning 19112 | -3/Quarantine | Spotted Lightning 19115 | -3/Quarantine | Spotted Lightning 19159 | -3/Quarantine | Destroyed Lightning 19227 | -3/Quarantine | Destroyed Lightning 19233 | -3/Quarantine | Found Prototype Device 19233 | -3/Quarantine | Identified Exp. EM Shield 19313 | -3/Quarantine | System corruption reached 10% 19657 | -3/Quarantine | Found Alien Artifact 19657 | -3/Quarantine | Identified Phase Armor 19689 | -3/Quarantine | Found Alien Impact Weapon 19689 | -3/Quarantine | Identified Core Stripper 19947 | -3/Quarantine | Spotted Fortress 19954 | -3/Quarantine | Destroyed Fortress 19976 | -3/Quarantine | Found Prototype Device 19976 | -3/Quarantine | Identified Exp. Force Field 19981 | -3/Quarantine | Found Prototype Protection 19981 | -3/Quarantine | Identified Centrium Heavy Armor Plating 19998 | -3/Quarantine | Found Thermal Barrier 20001 | -3/Quarantine | Found Prototype Reactor 20001 | -3/Quarantine | Identified Vortex Chain Reactor 20167 | -3/Quarantine | Found Prototype Energy Cannon 20167 | -3/Quarantine | Identified EMDS 20178 | -3/Quarantine | Found Exp. Targeting Computer 20218 | -3/Quarantine | Found Alien Artifact 20218 | -3/Quarantine | Identified Transdimensional Reconstructor (x2) 20218 | -3/Quarantine | Warped through subspace 20259 | -3/Quarantine | Found Alien Artifact 20259 | -3/Quarantine | Identified Dimensional Node Initializer 20259 | -3/Quarantine | Initialized slip node 20264 | -3/Quarantine | Found Dimensional Node Initializer 20273 | -3/Quarantine | Found Transdimensional Reconstructor 20391 | -3/Quarantine | Found Alien Artifact 20604 | -3/Quarantine | Discovered new exit (range 11) 20604 | -3/Quarantine | Spotted Quarantine Guard 20606 | -3/Quarantine | Spotted Quarantine Guard 20609 | -3/Quarantine | Destroyed Quarantine Guard 20615 | -3/Quarantine | Destroyed Quarantine Guard 20631 | -3/Quarantine | Discovered new exit (range 6) 20640 | -3/Quarantine | Identified exit to Protoforge 20644 | -3/Quarantine | Identified exit to Section 7 20652 | -3/Quarantine | Entered Protoforge 21112 | -3/Protoforge | Discovered exit to Research (range 12) 21128 | -3/Protoforge | Initialized slip node 21152 | -3/Protoforge | Central database locked down 21301 | -3/Protoforge | Found Prototype Protection 21301 | -3/Protoforge | Identified Cep. Core Shell 21312 | -3/Protoforge | Found Prototype Device 21312 | -3/Protoforge | Identified Cep. Antimissile System 21327 | -3/Protoforge | Found Prototype Device 21327 | -3/Protoforge | Identified Exp. System Purifier 21338 | -3/Protoforge | Found Exp. System Purifier 21363 | -3/Protoforge | Found Prototype Device 21363 | -3/Protoforge | Identified Exp. Trap Extractor 21395 | -3/Protoforge | Spotted Hotshot 21398 | -3/Protoforge | Spotted Hotshot 21400 | -3/Protoforge | Spotted Hotshot 21402 | -3/Protoforge | Spotted Hotshot 21403 | -3/Protoforge | Destroyed Hotshot 21406 | -3/Protoforge | Destroyed Hotshot 21475 | -3/Protoforge | Destroyed Hotshot 21519 | -3/Protoforge | Superfortress began startup sequence 21549 | -3/Protoforge | Found Prototype Device 21706 | -3/Protoforge | Destroyed Hotshot 21726 | -3/Protoforge | Forge Plexus network access discovered 21764 | -3/Protoforge | Spotted Immortal 21764 | -3/Protoforge | Spotted Immortal 21784 | -3/Protoforge | Destroyed Immortal 21790 | -3/Protoforge | Destroyed Immortal 21793 | -3/Protoforge | Spotted Decapitator 21793 | -3/Protoforge | Spotted Decapitator 21793 | -3/Protoforge | Spotted Decapitator 21793 | -3/Protoforge | Spotted Decapitator 21811 | -3/Protoforge | Destroyed Decapitator 21811 | -3/Protoforge | Destroyed Decapitator 21811 | -3/Protoforge | Destroyed Decapitator 21811 | -3/Protoforge | Destroyed Decapitator 21834 | -3/Protoforge | Identified Crosscalibrator 21902 | -3/Protoforge | First assault squad dispatched 21913 | -3/Protoforge | Found Cep. XC Strikerail 21920 | -3/Protoforge | Found Faulty Cep. XC Strikerail 21923 | -3/Protoforge | Found Faulty Cep. Lightning Penetrator 21932 | -3/Protoforge | Found Faulty Cep. Lightning Penetrator 22098 | -3/Protoforge | Build established: Scavenger-Gunner 22207 | -3/Protoforge | Found Faulty Cep. XC Strikerail 22290 | -3/Protoforge | Found Faulty Cep. XC Strikerail 22300 | -3/Protoforge | Found Corrupted Cep. Miniperforator 22416 | -3/Protoforge | Spotted Decapitator 22417 | -3/Protoforge | Spotted Decapitator 22417 | -3/Protoforge | Spotted Decapitator 22417 | -3/Protoforge | Spotted V046-z 22418 | -3/Protoforge | Spotted V415-e 22444 | -3/Protoforge | Destroyed Decapitator 22467 | -3/Protoforge | Core integrity fell below 50% 22472 | -3/Protoforge | Destroyed V046-z 22492 | -3/Protoforge | Core integrity fell below 20% 22493 | -3/Protoforge | Destroyed Decapitator 22499 | -3/Protoforge | Destroyed V415-e 22501 | -3/Protoforge | Destroyed Decapitator 22521 | -3/Protoforge | Found Prototype Device 22521 | -3/Protoforge | Identified Exp. Shield Generator 22522 | -3/Protoforge | Lost 13 parts (2p2n3u6w) 22552 | -3/Protoforge | Found Cep. NT7 Matterbank 22559 | -3/Protoforge | Found Cep. Antigrav Storage Unit 22564 | -3/Protoforge | Found Cep. Chromion Battery 22566 | -3/Protoforge | Found Cep. Matter Streamer 22679 | -3/Protoforge | Found Cep. Combat Aerolev Unit 22755 | -3/Protoforge | Found Cep. Core Shell 22814 | -3/Protoforge | Found Faulty Cep. Disintegration Ray 22816 | -3/Protoforge | Found Faulty Cep. Disintegration Ray 22939 | -3/Protoforge | Found Faulty Cep. Plasma Driver 22950 | -3/Protoforge | Found Cep. Plasma Driver 22954 | -3/Protoforge | Found Cep. Plasma Driver 22958 | -3/Protoforge | Found Faulty Cep. Plasma Driver 23125 | -3/Protoforge | Crushed by falling debris 23129 | -3/Protoforge | Found Cep. Core Shell 23140 | -3/Protoforge | Found Cep. Reaction Jets 23146 | -3/Protoforge | Found Cep. Hardlight Director 23148 | -3/Protoforge | Found Cep. Reaction Jets 23158 | -3/Protoforge | Crushed by falling debris 23267 | -3/Protoforge | Destroyed 8 combat bots 23329 | -3/Protoforge | Spotted Decapitator 23330 | -3/Protoforge | Spotted Decapitator 23330 | -3/Protoforge | Spotted Decapitator 23330 | -3/Protoforge | Spotted Decapitator 23333 | -3/Protoforge | Spotted V973-c 23336 | -3/Protoforge | Destroyed Decapitator 23336 | -3/Protoforge | Destroyed Decapitator 23338 | -3/Protoforge | Destroyed Decapitator 23344 | -3/Protoforge | Destroyed Decapitator 23381 | -3/Protoforge | Found Cep. Weapon Articulator 23383 | -3/Protoforge | Found Cep. Networked Targeting System 23387 | -3/Protoforge | Found Cep. Recoil Nullifier 23436 | -3/Protoforge | Spotted Decapitator 23436 | -3/Protoforge | Spotted Decapitator 23466 | -3/Protoforge | Spotted V157-b 23466 | -3/Protoforge | Spotted V094-j 23572 | -3/Protoforge | Found Cep. Biometal Exoskeleton 23602 | -3/Protoforge | Found Cep. Biometal Exoskeleton 23668 | -3/Protoforge | Build established: Scavenger-Mutant 23695 | -3/Protoforge | Spotted AP7-3 23697 | -3/Protoforge | Spotted AP7-3 23704 | -3/Protoforge | Destroyed AP7-3 23706 | -3/Protoforge | Destroyed AP7-3 23709 | -3/Protoforge | Found Prototype Device 23709 | -3/Protoforge | Identified Exp. ECM Suite 23713 | -3/Protoforge | Found Prototype Processor 23713 | -3/Protoforge | Identified Exp. Target Analyzer 23816 | -3/Protoforge | Found Faulty Cep. Thermoelectric Network 23819 | -3/Protoforge | Found Faulty Cep. Thermoelectric Network 23823 | -3/Protoforge | Found Cep. Core Analysis Suite 23828 | -3/Protoforge | Found Cep. Thermoelectric Network 24004 | -3/Protoforge | Found Cep. Cloak Mesh 24010 | -3/Protoforge | Warped through subspace to slip node 24010 | -3/Protoforge | Spotted Hotshot 24010 | -3/Protoforge | Spotted Hotshot 24011 | -3/Protoforge | Spotted Hotshot 24011 | -3/Protoforge | Spotted Hotshot 24017 | -3/Protoforge | Entered Research 24017 | -2/Research | Warlord forces began assault on 0b10 24017 | -2/Research | Evolved 2 slots: Utility x1, Weapon x1 24018 | -2/Research | Loaded intel: 22 terminal locations 24042 | -2/Research | Lost 3 parts (2p1w) 24127 | -2/Research | Research machine network offline 24165 | -2/Research | Spotted B-90 Cyclops 24245 | -2/Research | Discovered new exit (range 12) 24261 | -2/Research | Identified exit to Testing 24294 | -2/Research | Spotted B-90 Cyclops 24375 | -2/Research | Spotted Striker 24393 | -2/Research | Spotted Executioner 24395 | -2/Research | Spotted Executioner 24428 | -2/Research | Lost 6 allies 24492 | -2/Research | Borebot progress halted 24505 | -2/Research | Borebot progress halted 24706 | -2/Research | Borebot progress halted 24731 | -2/Research | Spotted Striker 24829 | -2/Research | Met up with Warlord 24958 | -2/Research | Spotted Striker 24959 | -2/Research | Spotted Striker 24970 | -2/Research | Destroyed Striker 24970 | -2/Research | Spotted Executioner 24993 | -2/Research | Spotted Executioner 25033 | -2/Research | Lost 7 allies 25269 | -2/Research | Spotted Executioner 25272 | -2/Research | Spotted Striker 25306 | -2/Research | Destroyed Executioner 25433 | -2/Research | Build established: Scavenger-Assassin 25520 | -2/Research | Given Cave Seal Controls access code 25531 | -2/Research | Warlord destroyed during the assault 25632 | -2/Research | Spotted Striker 25671 | -2/Research | Spotted Striker 25711 | -2/Research | Lost 4 allies 25752 | -2/Research | Entered Testing 25759 | -2/Testing | Found Thermal Barrier 25855 | -2/Testing | Found Prototype Launcher 25855 | -2/Testing | Identified Tesla Bomb Launcher 25883 | -2/Testing | Spotted Striker 25884 | -2/Testing | Spotted Striker 25916 | -2/Testing | Garrison activated, responded to threat 25929 | -2/Testing | Unchained authorized (CL-0N3) 26030 | -2/Testing | Identified Subatomic Replicator 26132 | -2/Testing | Found Prototype Device 26132 | -2/Testing | Identified Exp. Thermal Shield 26253 | -2/Testing | U-05 Engineer reconstituted as Alpha 7 26253 | -2/Testing | Spotted Alpha 7 26302 | -2/Testing | Destroyed Alpha 7 26302 | -2/Testing | Alpha 7 reconstituted as CL-0N3 26335 | -2/Testing | Garrison activated, responded to threat 26485 | -2/Testing | K-01 Serf reconstituted as V2 26486 | -2/Testing | Spotted V2 26556 | -2/Testing | Destroyed V2 26556 | -2/Testing | V2 reconstituted as CL-0N3 26752 | -2/Testing | First assault squad dispatched 26767 | -2/Testing | Discovered new exit (range 5) 26772 | -2/Testing | Identified exit to Access 26807 | -2/Testing | Found Prototype Energy Cannon 26807 | -2/Testing | Identified Cld. Nova Cannon 26852 | -2/Testing | U-05 Engineer reconstituted as Access Guard 26852 | -2/Testing | Spotted Access Guard 26857 | -2/Testing | Destroyed Access Guard 26857 | -2/Testing | Access Guard reconstituted as CL-0N3 27170 | -2/Testing | Found Prototype Launcher 27171 | -2/Testing | Identified Z-bomb Delivery System 27221 | -2/Testing | K-01 Serf reconstituted as Combat Programmer 27221 | -2/Testing | Spotted Combat Programmer 27262 | -2/Testing | Destroyed Combat Programmer 27262 | -2/Testing | Combat Programmer reconstituted as CL-0N3 27444 | -2/Testing | Entered Access 27444 | -1/Access | Evolved 2 slots: Power x1, Utility x1 27590 | -1/Access | Build established: Scavenger-Tank 27632 | -1/Access | Lost 4 allies 27667 | -1/Access | Unchained authorized (CL-0N3) 27678 | -1/Access | Identified exit to Surface 27802 | -1/Access | Spotted B-99 Colossus 27843 | -1/Access | Identified exit to Command 27867 | -1/Access | K-01 Serf reconstituted as S7 Guard 27867 | -1/Access | Spotted S7 Guard 27880 | -1/Access | Destroyed S7 Guard 27880 | -1/Access | S7 Guard reconstituted as CL-0N3 27944 | -1/Access | First assault squad dispatched 27966 | -1/Access | Destroyed B-99 Colossus 27985 | -1/Access | Found Prototype Ballistic Gun 27986 | -1/Access | Identified Multirail 28024 | -1/Access | Spotted B-99 Colossus 28039 | -1/Access | Destroyed B-99 Colossus 28073 | -1/Access | Found Multirail 28130 | -1/Access | Garrison activated, responded to threat 28205 | -1/Access | Destroyed 11 combat bots 28426 | -1/Access | R-10 Processor reconstituted as Access Guard 28428 | -1/Access | Spotted Access Guard 28445 | -1/Access | Garrison activated, responded to threat 28459 | -1/Access | Destroyed Access Guard 28459 | -1/Access | Access Guard reconstituted as CL-0N3 28532 | -1/Access | Found Exp. Core Analyzer 28645 | -1/Access | K-01 Serf reconstituted as Alpha 7 28645 | -1/Access | Spotted Alpha 7 28658 | -1/Access | Alpha 7 reconstituted as CL-0N3 28730 | -1/Access | Build established: Scavenger-Gunner 28860 | -1/Access | Garrison activated, responded to threat 28902 | -1/Access | Destroyed 8 combat bots 29102 | -1/Access | High security lockdown imminent 29182 | -1/Access | High security lockdown engaged 29327 | -1/Access | Garrison activated, responded to threat 29330 | -1/Access | Spotted Striker 29331 | -1/Access | Scanned by Researcher 29348 | -1/Access | Destroyed Investigator 29380 | -1/Access | Destroyed Striker 29446 | -1/Access | Destroyed 21 combat bots 29463 | -1/Access | Spotted Striker 29468 | -1/Access | Destroyed Striker 29500 | -1/Access | K-01 Serf reconstituted as V2 29500 | -1/Access | Spotted V2 29512 | -1/Access | Destroyed V2 29512 | -1/Access | V2 reconstituted as CL-0N3 29632 | -1/Access | Destroyed 8 combat bots 29680 | -1/Access | Spotted Executioner 29680 | -1/Access | Spotted Executioner 29685 | -1/Access | Destroyed Executioner 29688 | -1/Access | Destroyed Executioner 29723 | -1/Access | Destroyed Striker 29727 | -1/Access | Spotted Striker 29727 | -1/Access | Spotted Striker 29729 | -1/Access | Destroyed Striker 29736 | -1/Access | Destroyed Striker 29757 | -1/Access | Destroyed 14 combat bots 29838 | -1/Access | Build established: Scavenger-Tank 29958 | -1/Access | Spotted Executioner 29958 | -1/Access | Spotted Executioner 29959 | -1/Access | Spotted Striker 29970 | -1/Access | Destroyed Executioner 29970 | -1/Access | Destroyed Striker 29980 | -1/Access | Destroyed Executioner 30009 | -1/Access | Destroyed Executioner 30012 | -1/Access | Destroyed Executioner 30027 | -1/Access | Destroyed Striker 30034 | -1/Access | Destroyed Striker 30044 | -1/Access | Destroyed Striker 30044 | -1/Access | Destroyed Executioner 30057 | -1/Access | Destroyed Executioner 30067 | -1/Access | Sterilization system engaged 30083 | -1/Access | Spotted Investigator 30083 | -1/Access | Spotted Executioner 30083 | -1/Access | Spotted Executioner 30083 | -1/Access | Spotted Executioner 30086 | -1/Access | Destroyed Executioner 30098 | -1/Access | Destroyed Executioner 30098 | -1/Access | Destroyed Executioner 30105 | -1/Access | Destroyed Investigator 30144 | -1/Access | Destroyed Striker 30144 | -1/Access | Destroyed Executioner 30165 | -1/Access | Destroyed 37 combat bots 30237 | -1/Access | Spotted Striker 30255 | -1/Access | Destroyed Striker 30300 | -1/Access | Destroyed 8 combat bots 30367 | -1/Access | Ambient heat levels rising (+10) 30378 | -1/Access | Destroyed 10 combat bots 30410 | -1/Access | Found Hvy. Reflective Plating 30467 | -1/Access | Spotted Striker 30517 | -1/Access | Ambient heat levels rising (+10) 30667 | -1/Access | Ambient heat levels rising (+10) 30697 | -1/Access | Build established: Scavenger-Gunner 30817 | -1/Access | Ambient heat levels rising (+10) 30840 | -1/Access | Spotted B-99 Colossus 30868 | -1/Access | Destroyed B-99 Colossus 30890 | -1/Access | Found Multirail 30899 | -1/Access | Found Multirail 30967 | -1/Access | Ambient heat levels rising (+10) 31117 | -1/Access | Ambient heat levels rising (+10) 31267 | -1/Access | Ambient heat levels rising (+10) 31417 | -1/Access | Ambient heat levels rising (+10) 31567 | -1/Access | Ambient heat levels rising (+10) 31712 | -1/Access | Energy Cycler disabled 31717 | -1/Access | Ambient heat levels rising (+10) 31867 | -1/Access | Ambient heat levels rising (+10) 31918 | -1/Access | System corruption reached 10% 32017 | -1/Access | Ambient heat levels rising (+10) 32167 | -1/Access | Ambient heat levels rising (+10) 32194 | -1/Access | Found Imp. Powered Armor 32317 | -1/Access | Ambient heat levels rising (+10) 32467 | -1/Access | Ambient heat levels rising (+10) 32617 | -1/Access | Ambient heat levels rising (+10) 32767 | -1/Access | Ambient heat levels rising (+10) 32805 | -1/Access | Build established: Scavenger-Tank 32917 | -1/Access | Ambient heat levels rising (+10) 33067 | -1/Access | Ambient heat levels rising (+10) 33217 | -1/Access | Ambient heat levels rising (+10) 33363 | -1/Access | Build established: Pyromaniac-Tank 33367 | -1/Access | Ambient heat levels rising (+10) 33399 | -1/Access | Found Exp. Targeting Computer 33517 | -1/Access | Ambient heat levels rising (+10) 33667 | -1/Access | Ambient heat levels rising (+10) 33817 | -1/Access | Ambient heat levels rising (+10) 33967 | -1/Access | Ambient heat levels rising (+10) 34117 | -1/Access | Ambient heat levels rising (+10) 34267 | -1/Access | Ambient heat levels rising (+10) 34417 | -1/Access | Ambient heat levels rising (+10) 34567 | -1/Access | Ambient heat levels rising (+10) 34717 | -1/Access | Ambient heat levels rising (+10) 34867 | -1/Access | Ambient heat levels rising (+10) 35017 | -1/Access | Ambient heat levels rising (+10) 35167 | -1/Access | Ambient heat levels rising (+10) 35282 | -1/Access | Entered Command 35532 | -1/Command | First assault squad dispatched 36175 | -1/Command | High security lockdown imminent 36209 | -1/Command | Destroyed 10 combat bots 36255 | -1/Command | High security lockdown engaged 36448 | -1/Command | Destroyed 13 combat bots 36500 | -1/Command | Spotted Investigator 36501 | -1/Command | Destroyed Investigator 36519 | -1/Command | Spotted Executioner 36519 | -1/Command | Spotted Striker 36519 | -1/Command | Spotted Striker 36522 | -1/Command | Destroyed Striker 36524 | -1/Command | Destroyed Striker 36527 | -1/Command | Destroyed Executioner 36548 | -1/Command | Destroyed 15 combat bots 36655 | -1/Command | Spotted Investigator 36657 | -1/Command | Destroyed Investigator 36702 | -1/Command | Destroyed 19 combat bots 36846 | -1/Command | Spotted Executioner 36846 | -1/Command | Spotted Striker 36847 | -1/Command | Destroyed Striker 36849 | -1/Command | Spotted Executioner 36849 | -1/Command | Destroyed Executioner 36849 | -1/Command | Destroyed Executioner 36861 | -1/Command | Spotted Striker 36861 | -1/Command | Spotted Executioner 36868 | -1/Command | Spotted Executioner 36868 | -1/Command | Spotted Striker 36868 | -1/Command | Spotted Executioner 36870 | -1/Command | Destroyed Striker 36871 | -1/Command | Spotted Striker 36871 | -1/Command | Spotted Striker 36874 | -1/Command | Destroyed Striker 36879 | -1/Command | Destroyed Striker 36885 | -1/Command | Core integrity fell below 50% 36887 | -1/Command | Destroyed Striker 36889 | -1/Command | Destroyed Executioner 36892 | -1/Command | Destroyed Executioner 36894 | -1/Command | Destroyed Executioner 36914 | -1/Command | Lost 3 parts (3u) 36915 | -1/Command | Destroyed 26 combat bots 36983 | -1/Command | Phase Generator disabled 37086 | -1/Command | Destroyed Striker 37096 | -1/Command | Spotted Investigator 37102 | -1/Command | Spotted Striker 37105 | -1/Command | Destroyed Striker 37115 | -1/Command | Destroyed Investigator 37154 | -1/Command | Destroyed 28 combat bots 37188 | -1/Command | Spotted Striker 37188 | -1/Command | Destroyed Striker 37201 | -1/Command | Build established: Scavenger-Tank 37362 | -1/Command | Destroyed Striker 37362 | -1/Command | Destroyed Striker 37634 | -1/Command | Spotted Striker 37635 | -1/Command | Spotted Striker 37636 | -1/Command | Spotted Striker 37638 | -1/Command | Destroyed Striker 37638 | -1/Command | Destroyed Striker 37640 | -1/Command | Destroyed Striker 37675 | -1/Command | Destroyed 8 combat bots 38189 | -1/Command | Found Prototype Device 38197 | -1/Command | Identified Adv. Kinecellerator 38341 | -1/Command | Destroyed 17 combat bots 38695 | -1/Command | Destroyed 34 combat bots 38860 | -1/Command | Destroyed 44 combat bots 39032 | -1/Command | Lost 3 parts (1n1u1w) 39053 | -1/Command | Destroyed 32 combat bots 39522 | -1/Command | Spotted B-99 Colossus 39540 | -1/Command | Destroyed B-99 Colossus 39554 | -1/Command | Found Multirail 39560 | -1/Command | Found Multirail 39569 | -1/Command | Found Hvy. Reflective Plating 39629 | -1/Command | Found Prototype Launcher 39629 | -1/Command | Identified Enh. Gamma Bomb Array 39718 | -1/Command | Spotted Striker 39869 | -1/Command | Spotted Alpha 7 39872 | -1/Command | Spotted Executioner 39876 | -1/Command | Spotted Alpha 7 39876 | -1/Command | Destroyed Striker 39876 | -1/Command | Destroyed Executioner 39881 | -1/Command | Destroyed Alpha 7 39889 | -1/Command | Destroyed Alpha 7 39891 | -1/Command | Spotted Striker 39892 | -1/Command | Destroyed Striker 39895 | -1/Command | Destroyed Executioner 40042 | -1/Command | Spotted Executioner 40050 | -1/Command | Destroyed Executioner 40054 | -1/Command | Destroyed Executioner 40072 | -1/Command | Destroyed B-99 Colossus 40113 | -1/Command | Spotted B-99 Colossus 40122 | -1/Command | Destroyed B-99 Colossus 40137 | -1/Command | Discovered exit to Surface (range 8) 40144 | -1/Command | Found Multirail 40148 | -1/Command | Found Multirail 40183 | -1/Command | Found Multirail 40207 | -1/Command | Found Adv. Kinecellerator 40226 | -1/Command | Found Prototype Energy Gun 40226 | -1/Command | Identified Enh. Gamma Rifle 40234 | -1/Command | Found Multirail 40684 | -1/Command | Destroyed M Guard 40714 | -1/Command | Destroyed M Guard 41008 | -1/Command | Spotted Combat Programmer 41010 | -1/Command | Spotted Combat Programmer 41024 | -1/Command | Destroyed Combat Programmer 41027 | -1/Command | Destroyed Combat Programmer 41027 | -1/Command | All MAIN.C guards destroyed 41070 | -1/Command | Found Prototype Reactor 41070 | -1/Command | Identified Zero-point Reactor 41073 | -1/Command | Found Prototype Device 41073 | -1/Command | Identified AEGIS Remote Shield 41125 | -1/Command | Found Prototype Launcher 41125 | -1/Command | Identified Smartbomb Launcher 41286 | -1/Command | Met MAIN.C 41302 | -1/Command | 0b10 Conduit disabled 41330 | -1/Command | Destroyed MAIN.C Shell 41333 | -1/Command | MAIN.C activated Command garrisons 41358 | -1/Command | Destroyed MAIN.C 41384 | -1/Command | Found Prototype Protection 41384 | -1/Command | Identified Exp. Powered Armor 41389 | -1/Command | Found Prototype Device 41393 | -1/Command | Identified Thermal Barrier 41393 | -1/Command | Discovered exit to Surface (range 37) 41393 | -1/Command | Discovered exit to Surface (range 89) 41393 | -1/Command | Extracted map data and part IDs from MAIN.C's data core 41402 | -1/Command | Found Zero-point Reactor 41417 | -1/Command | Found Centrium Heavy Armor Plating 41584 | -1/Command | Found Exp. System Purifier 41605 | -1/Command | Build established: Scavenger-Executioner 42034 | -1/Command | Found Vortex Chain Reactor 42038 | -1/Command | Found Adv. Particle Accelerator 42040 | -1/Command | Found Exp. Armor Integrity Analyzer 42046 | -1/Command | Found Zero-point Reactor 42334 | -1/Command | Build established: Scavenger-Mutant 42562 | -1/Command | Found Zero-point Reactor 42803 | -1/Command | Found Exp. Core Analyzer 44563 | -1/Command | Found Hvy. Reactive Plating 44593 | -1/Command | Found Imp. Powered Armor 44921 | -1/Command | Build established: Scavenger-Gunner 45186 | -1/Command | Used Subatomic Replicator to replicate AEGIS Remote Shield 45549 | -1/Command | Found Exp. Targeting Computer 45895 | -1/Command | Warped through subspace to slip node 45895 | -1/Command | Discovered new exit (range 5) 45914 | -1/Command | Entered Access_0 45917 | -1/Access_0 | Met Architect 45922 | -1/Access_0 | Destroyed A8 45932 | -1/Access_0 | Architect warped through subspace 45983 | -1/Access_0 | Subspace Access Node disabled 45989 | -1/Access_0 | Architect warped through subspace 46025 | -1/Access_0 | Architect warped through subspace 46053 | -1/Access_0 | Architect warped through subspace 46061 | -1/Access_0 | Subspace Access Node disabled 46084 | -1/Access_0 | Architect warped through subspace 46093 | -1/Access_0 | Found Exp. Weapon Cycler 46098 | -1/Access_0 | Found Exp. Phase Shifter 46116 | -1/Access_0 | Architect warped through subspace 46141 | -1/Access_0 | Architect warped through subspace 46161 | -1/Access_0 | Architect warped through subspace 46181 | -1/Access_0 | Architect warped through subspace 46203 | -1/Access_0 | Architect warped through subspace 46222 | -1/Access_0 | Architect warped through subspace 46238 | -1/Access_0 | Architect warped through subspace 46245 | -1/Access_0 | A6 warped into view 46258 | -1/Access_0 | Destroyed A6 46267 | -1/Access_0 | Architect warped through subspace 46280 | -1/Access_0 | Architect warped through subspace 46291 | -1/Access_0 | Architect warped through subspace 46300 | -1/Access_0 | Architect warped through subspace 46311 | -1/Access_0 | Architect warped through subspace 46330 | -1/Access_0 | Architect warped through subspace 46344 | -1/Access_0 | Architect warped through subspace 46355 | -1/Access_0 | Core integrity fell below 20% 46357 | -1/Access_0 | Architect warped through subspace 46375 | -1/Access_0 | Subspace Access Node disabled 46378 | -1/Access_0 | Architect warped through subspace 46383 | -1/Access_0 | Crushed by falling debris 46391 | -1/Access_0 | Architect warped through subspace 46431 | -1/Access_0 | Architect warped through subspace 46455 | -1/Access_0 | Lost 3 parts (1n1u1w) 46484 | -1/Access_0 | Subspace Access Node disabled 46511 | -1/Access_0 | Destroyed Architect 46512 | -1/Access_0 | Architect triggered a singularity event 46514 | -1/Access_0 | Released all parts (25) 46516 | -1/Access_0 | Found Hpw. Transdimensional Reconstructor 46516 | -1/Access_0 | Warped through subspace to slip node 46516 | -1/Access_0 | Discovered exit to Surface (range 8) 46521 | *** | Escaped singularity! Last Messages --------------- 46514_ Imp. Utility Shielding crushed and broken. 46514_ Released Hds. Centrium Leg. 46514_ Hds. Centrium Leg crushed and broken. 46514_ Released Exp. Phase Shifter. 46514_ Exp. Phase Shifter crushed and broken. 46514_ Released Exp. Weapon Cycler. 46514_ Exp. Weapon Cycler crushed and broken. 46515_ A0_COM: 8. 46516_ A0_COM: 7. 46516_ Acquired Hpw. Transdimensional Reconstructor. 46516_ Warped through subspace, drawn to slip node. 46516_ EXIT=FOUND: SURFACE 46517_ A0_COM: 6. 46518_ A0_COM: 5. 46519_ A0_COM: 4. 46520_ A0_COM: 3. 46521_ A0_COM: 2. Map ----- +----------------------------------------------------+ | | | | | | | | | | | | | | | | | | | | | | | | | | | | | | | | | ?????????????????????????????????????????????????? | | ?????????????????????????????????????????????????? | | ?????????????????????????????????????????????????? | | ?????????????????????????????????????????????????? | | ?????????????????????????????????????????????????? | | ?????????????????????????????????????????????????? | | ????????????????????????###??????????????????????? | | ???????????????????????## ##?????????????????????? | | ???????????????????????# #?????????????????????? | | ???????????????????????# @ #?????????????????????? | | ??????????????????????## #?????????????????????? | | ??????????????????????# #?????????????????????? | | ??????????????????????# ##?????????????????????? | | ??????????????????????## #?????????????????????? | | ??????????????????????# #?????????????????????? | | ??????????????????????# ##?????????????????????? | | ??????????????????????# < #?????????????????????? | | ??????????????????????# ##?????????????????????? | | ??????????????????????## #??????????????????????? | | ???????????????????????####??????????????????????? | | ?????????????????????????????????????????????????? | | ?????????????????????????????????????????????????? | | ?????????????????????????????????????????????????? | | ?????????????????????????????????????????????????? | | ?????????????????????????????????????????????????? | | ?????????????????????????????????????????????????? | | ?????????????????????????????????????????????????? | | ?????????????????????????????????????????????????? | | ?????????????????????????????????????????????????? | | ?????????????????????????????????????????????????? | | ?????????????????????????????????????????????????? | | ?????????????????????????????????????????????????? | | ?????????????????????????????????????????????????? | | ?????????????????????????????????????????????????? | +----------------------------------------------------+ Best States ------------- Heat Dissipation 88 Energy Generation 93 Energy Capacity 850 Matter Stores 300 Matter Capacity 700 Sight Range 23 Robot Scan Range 18 Terrain Scan Range 20 Terrain Scan Density 210 ECM Strength 3 Jamming Range 16 Cloak Strength 6 EM Shielding 3 Armor Coverage 2000 Resistance: KI 30 Resistance: TH 50 Resistance: EM 75 Core Shielding 90 Utility Shielding 66 Weapon Cycling 30 Melee Speed Boost 20 Phase Shifting 20 Evasion (%) 89 Targeting Accuracy 30 Target Analysis 8 Core Analysis 12 Armor Integrity Analysis 50 Recoil Reduction 6 Particle Charging 50 Kinecelleration 50 Salvage Targeting 5 Offensive Hacking 26 Defensive Hacking 10 Trap Extractor Capacity 8 Item Schematics ----------------- System Restoration Module | -9/Storage | Hacked Cld. VTOL Module | -7/Factory | Scanalyzed Assault Drone Bay | -5/Zhirov | Free Exp. Heat Sink | -5/Zhirov | Free Exp. Optical Array | -5/Zhirov | Free Imp. Arc Thrower | -5/Zhirov | Free Exp. Targeting Computer | -3/Protoforge | Archive Com. Particle Reactor | -3/Protoforge | Archive Hds. Centrium Wheel | -3/Protoforge | Archive Robot Schematics ------------------ M-13 Machinist | -10/Materials | Hacked B-74 Champion | -3/Protoforge | Archive A-27 Freighter | -2/Testing | Archive E-15 Imp | -2/Testing | Archive Fabricated ------------ Nothing Repaired ---------- Cld. Airjet | 71% | -5/Factory Studied --------- Wheel | -9/Materials | Hacked Com. Wheel | -9/Materials | Hacked Hyp. Coil Gun | -5/Factory | Hacked KE Penetrator | -4/Factory | Hacked Railgun | -4/Factory | Hacked Lgt. Antimatter Reactor | -4/Factory | Hacked Lrn. Missile Launcher | -4/Factory | Hacked Gamma Bomb Array | -3/Quarantine | Hacked Com. HERF Cannon | -3/Protoforge | Hacked Alien Tech Used ----------------- Integrated Reactor Core Expander Sigix Broadsword Phase Redirector Phase Armor Core Stripper Transdimensional Reconstructor Dimensional Node Initializer Subatomic Replicator High-powered Transdimensional Reconstructor Achievements -------------- None Challenges ------------ None Game ------ Seed ConstructRelayKit Manual? 0 Play Time 08:35:31 Cumulative 914.7 hours Start 2026.06.20 @ 19:13:00 End 2026.06.22 @ 02:23:56 Sessions 5 Manual Loads 0 Difficulty Rogue Special Mode None Game No. 256 Rogue 256 Adventurer 0 Explorer 0 Win Type 6 Total 37 Types 12/6/9/1/2/0/3/1/1/2 Lore% 96 Gallery% 90 Achievement% 85 Wizard Run 0 Options --------- Layout 1 ASCII 0 Keyboard 0 Movement Mouse Keybinds 0 Fullscreen 2 Font 32/SmallcapsGlow Map View 50x35 Zoom Use 0% Tactical HUD 1 Map Filters NONE Filters NONE Steam 1 RUN: e8bc93d9-7c69-4e84-9d01-4235dfec2fe7